{"text_format":"1","workbook":"xlsx","n_sheets":12,"sheets":["paramètres FTP","paramètres choix fichiers","fichiers du répertoire cible","Score","Finales M11","Finales M13","1ère Phase M11","1ère Phase M13","1ère Phase M11 FDT","1ère Phase M13 FDT","Finales M11 FDT","Finales M13 FDT"],"not_rendered":{"charts":0,"images":9,"macros":1,"external_links":0,"defined_names":121,"comments":2,"pivot_tables":0},"unopened":[],"bounds":{"document_bytes":16777216,"sheet_cells":100000,"rows_first":2000,"rows_last":500,"rows_between":2000,"halvings":0,"cell_chars":16384,"cell_head_chars":4096},"cells_cut":0,"cells_raw":0,"read":"whole","date_system":"1900"}

{"sheet":"paramètres FTP","index":0,"n_rows":17,"n_cols":4,"rows_kept":17,"cut":false,"hidden":true,"merged":[]}
[]
[]
[null,"Paramètres par défaut (FTP)"]
[]
[]
[null,null,null,{"$f":"LEFT(CELL(\"filename\",C1),FIND(\"[\",CELL(\"filename\",C1))-2)&\"\\result.html\"","v":"C:\\Users\\fseys\\Dropbox (Compte personnel)\\! ! ! Tournoi Noël 2019\\! Tournoi\\result.html"}]
[null,"adresse du site FTP",null,"ftp.cluster027.hosting.ovh.net"]
[]
[null,"Port FTP",null,21]
[]
[null,"Répertoire vers lequel les fichiers doivent être transférés",null,"/www/TIN2019/"]
[]
[null,"Login",null,"sshbfryhnr"]
[]
[null,"Mot de passe"]
[]
[null,"autres paramètres  dans le code de la macro",":","transfert en mode actif / passif, binaire / ascii"]

{"sheet":"paramètres choix fichiers","index":1,"n_rows":11,"n_cols":4,"rows_kept":11,"cut":false,"hidden":true,"merged":[]}
[]
[]
[null,"Paramètres par défaut (choix des fichiers)"]
[]
[]
[null,null,null,{"$f":"LEFT(CELL(\"filename\",C1),FIND(\"[\",CELL(\"filename\",C1))-2)&\"\\result.html\"","v":"C:\\Users\\fseys\\Dropbox (Compte personnel)\\! ! ! Tournoi Noël 2019\\! Tournoi\\result.html"}]
[null,"adresse du répertoire à transférer",null,{"$f":"LEFT(CELL(\"filename\",K1),FIND(\"[\",CELL(\"filename\",K1))-2)","v":"C:\\Users\\fseys\\Dropbox (Compte personnel)\\! ! ! Tournoi Noël 2019\\! Tournoi"}]
[]
[null,"âge maxi des fichiers (en jours)",null,"5"]
[]
[null,"types de fichiers à transférer (séparer par des virgules)",null,"html"]

{"sheet":"fichiers du répertoire cible","index":2,"n_rows":6,"n_cols":4,"rows_kept":6,"cut":false,"hidden":true,"merged":[]}
[]
[]
[]
[]
[]
[null,null,null,{"$f":"LEFT(CELL(\"filename\",C1),FIND(\"[\",CELL(\"filename\",C1))-2)&\"\\result.html\"","v":"C:\\Users\\fseys\\Dropbox (Compte personnel)\\! ! ! Tournoi Noël 2019\\! Tournoi\\result.html"}]

{"sheet":"Score","index":3,"n_rows":80,"n_cols":41,"rows_kept":80,"cut":false,"hidden":false,"merged":[[0,3,4,6],[0,21,4,24]]}
["MOINS DE 11 MIXTE",null,null,"M11G",null,null,null,"Durées",null,null,"09:00:00",null,null,null,null,null,null,"MOINS DE 13 MASCULINS",null,null,null,"M13G",null,null,null,null,null,{"$f":"LEFT(CELL(\"filename\",K1),FIND(\"[\",CELL(\"filename\",K1))-2)&\"\\\"&\"partie_1_m11.html\"","v":"C:\\Users\\fseys\\Dropbox (Compte personnel)\\! ! ! Tournoi Noël 2019\\! Tournoi\\partie_1_m11.html"}]
["STRASBOURG SUD A","STRASBOURG SUD B","ESSAHB - M11",null,null,null,null,null,"Mise en place",null,"00:02:00",null,null,null,null,null,null,"TUS ALTENHEIM","equi","STRASBOURG SUD HB","ASH - HAGUENAU",null,null,null,null,null,null,"Date de derni&egrave;re modification : 02/12/2019 14:36:14"]
["SELESTAT AHB B","SELESTAT AHB A","HC ECKBOLSHEIM - M11",null,null,null,null,null,"durée Match Clas",null,"00:15:00",null,null,null,null,null,null,"ESSAHB - M13",null,"SR INGWILLER BOUXWILLER","US SAINT VIT",null,null,null,null,null,null,{"$f":"LEFT(CELL(\"filename\",K3),FIND(\"[\",CELL(\"filename\",K3))-2)&\"\\\"&\"partie_1_m13.html\"","v":"C:\\Users\\fseys\\Dropbox (Compte personnel)\\! ! ! Tournoi Noël 2019\\! Tournoi\\partie_1_m13.html"}]
["CVJM WALDDORFHÄSLACH","ESBM GBDH","ATH - M11",null,null,null,null,"Extra time 1er match","Pause midi",null,"01:03:00",null,null,null,null,null,null,"HC ECKBOLSHEIM - M13",null,"TV MURI HANDBALL","VAHB - VERDUN"]
["SARREBOURG MSH","ASPTT","HSG HANAUERLAND",null,null,null,null,"00:05:00","Exclusions",null,"00:01:00",null,null,null,null,null,null,"ATH - M13",null,"SR INGWILLER BOUXWILLER","CVJM WALDDORFHÄSLACH"]
[]
[null,"POULES ET CLASSEMENTS PHASES PRELIMINAIRES"]
[]
[null,"GYMNASE DES 2 RIVES",null,null,null,null,null,null,null,null,"JEAN-NICOLAS MULLER",null,null,null,null,null,null,null,null,"GYMNASE REUSS"]
[]
[null,"Recevants","Visiteurs","Sc-R","Sc-V","Pt-R","Pt-V","Arbitrage","Sanctions",null,"Recevants","Visiteurs","Sc-R","Sc-V","Pt-R","Pt-V","Arbitrage","Sanctions",null,"Recevants","Visiteurs","Sc-R","Sc-V","Pt-R","Pt-V","Arbitrage","Sanctions",null,null,null,null,null,null,null,null,null,null,null,"Couleurs"]
["Poules",null,null,null,null,null,null,null,null,null,null,null,null,null,null,null,null,null,null,null,null,null,null,null,null,null,null,null,null,null,null,null,null,null,null,null,null,null,"Poule A","Poule B","Poule C"]
[{"$f":"HOUR(AI13)&\"h\"&TEXT(MINUTE(AI13),\"00\")","v":"9h00"},{"$f":"equi_11G_PA_1","v":"STRASBOURG SUD A"},{"$f":"equi_11G_PA_4","v":"SARREBOURG MSH"},null,null,{"$f":"IF(ISBLANK(D13),\"-\",IF(D13=E13,2,IF(D13<E13,1,3)))","v":"-"},{"$f":"IF(ISBLANK(D13),\"-\",IF(D13=E13,2,IF(D13>E13,1,3)))","v":"-"},null,null,null,{"$f":"equi_11G_PC_1","v":"ESSAHB - M11"},{"$f":"equi_11G_PC_4","v":"HSG HANAUERLAND"},null,null,{"$f":"IF(ISBLANK(M13),\"-\",IF(M13=N13,2,IF(M13<N13,1,3)))","v":"-"},{"$f":"IF(ISBLANK(M13),\"-\",IF(M13=N13,2,IF(M13>N13,1,3)))","v":"-"},null,null,null,{"$f":"equi_13G_PB_1","v":"STRASBOURG SUD HB"},{"$f":"equi_13G_PB_4","v":"SR INGWILLER BOUXWILLER"},null,null,{"$f":"IF(ISBLANK(V13),\"-\",IF(V13=W13,2,IF(V13<W13,1,3)))","v":"-"},{"$f":"IF(ISBLANK(V13),\"-\",IF(V13=W13,2,IF(V13>W13,1,3)))","v":"-"},null,null,null,null,null,{"$f":"Finaliste_M11_1","v":"ASPTT"},{"$f":"Finaliste_M13_1","v":"SR INGWILLER BOUXWILLER"},null,null,{"$f":"départ","v":"09:00:00"},null,null,"Titre","CC9900","CC6666","CC66FF"]
["9h22",{"$f":"equi_11G_PB_1","v":"STRASBOURG SUD B"},{"$f":"equi_11G_PB_4","v":"ASPTT"},null,null,"-",{"$f":"IF(ISBLANK(D14),\"-\",IF(D14=E14,2,IF(D14>E14,1,3)))","v":"-"},"+5' min d'échauff",null,null,{"$f":"equi_13G_PA_1","v":"TUS ALTENHEIM"},{"$f":"equi_13G_PA_4","v":"ATH - M13"},null,null,{"$f":"IF(ISBLANK(M14),\"-\",IF(M14=N14,2,IF(M14<N14,1,3)))","v":"-"},{"$f":"IF(ISBLANK(M14),\"-\",IF(M14=N14,2,IF(M14>N14,1,3)))","v":"-"},"+5' min d'échauff",null,null,{"$f":"equi_13G_PC_1","v":"ASH - HAGUENAU"},{"$f":"equi_13G_PC_4","v":"CVJM WALDDORFHÄSLACH"},null,null,{"$f":"IF(ISBLANK(V14),\"-\",IF(V14=W14,2,IF(V14<W14,1,3)))","v":"-"},{"$f":"IF(ISBLANK(V14),\"-\",IF(V14=W14,2,IF(V14>W14,1,3)))","v":"-"},"+5' min d'échauff",null,null,null,null,{"$f":"Finaliste_M11_2","v":"SARREBOURG MSH"},{"$f":"Finaliste_M13_2","v":"VAHB - VERDUN"},null,null,{"$f":"AI13+MeP+Durée+extra_time","v":"09:22:00"},null,null,"S Titre","FFCC99","FFA4A4","FFCCFF"]
["9h44",{"$f":"equi_11G_PA_2","v":"SELESTAT AHB B"},{"$f":"equi_11G_PA_3","v":"CVJM WALDDORFHÄSLACH"},null,null,{"$f":"IF(ISBLANK(D15),\"-\",IF(D15=E15,2,IF(D15<E15,1,3)))","v":"-"},"-","+5' min d'échauff",null,null,{"$f":"equi_11G_PC_2","v":"HC ECKBOLSHEIM - M11"},{"$f":"equi_11G_PC_3","v":"ATH - M11"},null,null,"-","-","+5' min d'échauff",null,null,"VILLIERS HANDBALL",{"$f":"equi_13G_PB_3","v":"TV MURI HANDBALL"},null,null,"-","-","+5' min d'échauff",null,null,null,null,{"$f":"Finaliste_M11_3","v":"STRASBOURG SUD B"},{"$f":"Finaliste_M13_3","v":"ASH - HAGUENAU"},null,null,{"$f":"AI14+MeP+Durée+extra_time","v":"09:44:00"},null,null,"Corps","FFCC33","FF6666","FF66FF"]
["10h06",{"$f":"equi_11G_PB_2","v":"SELESTAT AHB A"},{"$f":"equi_11G_PB_3","v":"ESBM GBDH"},null,null,"-","-","+5' min d'échauff",null,null,{"$f":"equi_13G_PA_2","v":"ESSAHB - M13"},{"$f":"equi_13G_PA_3","v":"HC ECKBOLSHEIM - M13"},null,null,"-","-","+5' min d'échauff",null,null,{"$f":"equi_13G_PC_2","v":"US SAINT VIT"},{"$f":"equi_13G_PC_3","v":"VAHB - VERDUN"},null,null,"-","-","+5' min d'échauff",null,null,null,null,{"$f":"Finaliste_M11_4","v":"STRASBOURG SUD A"},{"$f":"Finaliste_M13_4","v":"TV MURI HANDBALL"},null,null,{"$f":"AI15+MeP+Durée+extra_time","v":"10:06:00"}]
["10h23",{"$f":"equi_11G_PA_3","v":"CVJM WALDDORFHÄSLACH"},{"$f":"equi_11G_PA_1","v":"STRASBOURG SUD A"},null,null,"-","-",null,null,null,{"$f":"equi_11G_PC_3","v":"ATH - M11"},{"$f":"equi_11G_PC_1","v":"ESSAHB - M11"},null,null,"-","-",null,null,null,{"$f":"equi_13G_PB_3","v":"TV MURI HANDBALL"},{"$f":"equi_13G_PB_1","v":"STRASBOURG SUD HB"},null,null,"-","-",null,null,null,null,null,{"$f":"Finaliste_M11_5","v":"ESSAHB - M11"},{"$f":"Finaliste_M13_5","v":"HC ECKBOLSHEIM - M13"},null,null,{"$f":"AI16+MeP+Durée","v":"10:23:00"},null,null,"Quart","00FF00"]
["10h40",{"$f":"equi_11G_PB_3","v":"ESBM GBDH"},{"$f":"equi_11G_PB_1","v":"STRASBOURG SUD B"},null,null,"-","-",null,null,null,{"$f":"equi_13G_PA_3","v":"HC ECKBOLSHEIM - M13"},{"$f":"equi_13G_PA_1","v":"TUS ALTENHEIM"},null,null,"-","-",null,null,null,{"$f":"equi_13G_PC_3","v":"VAHB - VERDUN"},{"$f":"equi_13G_PC_1","v":"ASH - HAGUENAU"},null,null,"-","-",null,null,null,null,null,{"$f":"Finaliste_M11_6","v":"HSG HANAUERLAND"},{"$f":"Finaliste_M13_6","v":"ATH - M13"},null,null,"10:40:00",null,null,"classement","50BF40"]
["10h57",{"$f":"equi_11G_PA_2","v":"SELESTAT AHB B"},{"$f":"equi_11G_PA_4","v":"SARREBOURG MSH"},null,null,"-",{"$f":"IF(ISBLANK(D19),\"-\",IF(D19=E19,2,IF(D19>E19,1,3)))","v":"-"},null,null,null,{"$f":"equi_11G_PC_2","v":"HC ECKBOLSHEIM - M11"},{"$f":"equi_11G_PC_4","v":"HSG HANAUERLAND"},null,null,"-","-",null,null,null,{"$f":"equi_13G_PB_2","v":"SR INGWILLER BOUXWILLER"},{"$f":"equi_13G_PB_4","v":"SR INGWILLER BOUXWILLER"},null,null,"-","-",null,null,null,null,null,{"$f":"Finaliste_M11_7","v":"CVJM WALDDORFHÄSLACH"},{"$f":"Finaliste_M13_7","v":"US SAINT VIT"},null,null,"10:57:00",null,null,"Quart","00FFFF"]
["11h14",{"$f":"equi_11G_PB_2","v":"SELESTAT AHB A"},{"$f":"equi_11G_PB_4","v":"ASPTT"},null,null,"-","-",null,null,null,{"$f":"equi_13G_PA_2","v":"ESSAHB - M13"},{"$f":"equi_13G_PA_4","v":"ATH - M13"},null,null,"-","-",null,null,null,{"$f":"equi_13G_PC_2","v":"US SAINT VIT"},{"$f":"equi_13G_PC_4","v":"CVJM WALDDORFHÄSLACH"},null,null,"-","-",null,null,null,null,null,{"$f":"Finaliste_M11_8","v":"HC ECKBOLSHEIM - M11"},{"$f":"Finaliste_M13_8","v":"SR INGWILLER BOUXWILLER"},null,null,"11:14:00",null,null,"classement","00CCFF"]
["11h31",{"$f":"equi_11G_PA_1","v":"STRASBOURG SUD A"},{"$f":"equi_11G_PA_2","v":"SELESTAT AHB B"},null,null,"-","-",null,null,null,{"$f":"equi_11G_PC_1","v":"ESSAHB - M11"},{"$f":"equi_11G_PC_2","v":"HC ECKBOLSHEIM - M11"},null,null,"-","-",null,null,null,{"$f":"equi_13G_PB_1","v":"STRASBOURG SUD HB"},{"$f":"equi_13G_PB_2","v":"SR INGWILLER BOUXWILLER"},null,null,"-","-",null,null,null,null,null,null,null,null,null,"11:31:00",{"$f":"AI21+Durée","v":"11:46:00"}]
["11h48",{"$f":"equi_11G_PB_1","v":"STRASBOURG SUD B"},{"$f":"equi_11G_PB_2","v":"SELESTAT AHB A"},null,null,"-","-",null,null,null,{"$f":"equi_13G_PA_1","v":"TUS ALTENHEIM"},{"$f":"equi_13G_PA_2","v":"ESSAHB - M13"},null,null,"-","-",null,null,null,{"$f":"equi_13G_PC_1","v":"ASH - HAGUENAU"},{"$f":"equi_13G_PC_2","v":"US SAINT VIT"},null,null,"-","-",null,null,null,null,null,{"$f":"_3eme_3eme_M11","v":"SELESTAT AHB A"},{"$f":"_3eme_3eme_M13","v":"TUS ALTENHEIM"},null,null,"11:48:00",{"$f":"AI22+Durée","v":"12:03:00"}]
["12h05",{"$f":"equi_11G_PA_4","v":"SARREBOURG MSH"},{"$f":"equi_11G_PA_3","v":"CVJM WALDDORFHÄSLACH"},null,null,"-","-",null,null,null,{"$f":"equi_11G_PC_4","v":"HSG HANAUERLAND"},{"$f":"equi_11G_PC_3","v":"ATH - M11"},null,null,"-","-",null,null,null,{"$f":"equi_13G_PB_4","v":"SR INGWILLER BOUXWILLER"},{"$f":"equi_13G_PB_3","v":"TV MURI HANDBALL"},null,null,"-","-",null,null,null,null,null,{"$f":"_4eme_poule_A_M11","v":"SELESTAT AHB B"},{"$f":"_4eme_poule_A_M13","v":"ESSAHB - M13"},null,null,"12:05:00",{"$f":"AI23+Durée","v":"12:20:00"}]
["12h20",{"$f":"equi_11G_PB_4","v":"ASPTT"},{"$f":"equi_11G_PB_3","v":"ESBM GBDH"},null,null,{"$f":"IF(ISBLANK(D24),\"-\",IF(D24=E24,2,IF(D24<E24,1,3)))","v":"-"},"-",null,null,null,{"$f":"equi_13G_PA_4","v":"ATH - M13"},{"$f":"equi_13G_PA_3","v":"HC ECKBOLSHEIM - M13"},null,null,"-","-",null,null,null,{"$f":"equi_13G_PC_4","v":"CVJM WALDDORFHÄSLACH"},{"$f":"equi_13G_PC_3","v":"VAHB - VERDUN"},null,null,"-","-",null,null,null,null,null,{"$f":"_4eme_poule_B_M11","v":"ESBM GBDH"},{"$f":"_4eme_poule_B_M13","v":"STRASBOURG SUD HB"},null,null,{"$f":"AI23+Durée","v":"12:20:00"},{"$f":"AI24+Durée","v":"12:35:00"}]
["12h37",null,null,null,null,"-","-",null,null,null,null,null,null,null,"-","-",null,null,null,null,null,null,null,"-","-",null,null,null,null,null,{"$f":"_4eme_poule_C_M11","v":"ATH - M11"},{"$f":"_4eme_poule_C_M13","v":"CVJM WALDDORFHÄSLACH"},null,null,{"$f":"AI24+MeP+Durée","v":"12:37:00"},{"$f":"AI25+Durée","v":"12:52:00"}]
[]
[]
[null,null,"Poule A","Pts","B+","B-","DifF",null,null,null,null,"Poule A","Pts","B+","B-","DifF",null,null,null,null,{"$f":"\"Meilleur 3ème des \"&A1","v":"Meilleur 3ème des MOINS DE 11 MIXTE"}]
[null,null,{"$f":"equi_11G_PA_4","v":"SARREBOURG MSH"},{"$f":"SUMIF($B$13:$B$25,equi_11G_PA_4,$F$13:$F$25)+SUMIF($C$13:$C$25,equi_11G_PA_4,$G$13:$G$25)","v":0},{"$f":"SUMIF($B$13:$B$25,equi_11G_PA_4,$D$13:$D$25)+SUMIF($C$13:$C$25,equi_11G_PA_4,$E$13:$E$25)","v":0},{"$f":"SUMIF($B$13:$B$25,equi_11G_PA_4,$E$13:$E$25)+SUMIF($C$13:$C$25,equi_11G_PA_4,$D$13:$D$25)","v":0},{"$f":"E29-F29","v":0},null,null,null,null,{"$f":"equi_13G_PA_3","v":"HC ECKBOLSHEIM - M13"},{"$f":"SUMIF($K$13:$K$25,equi_13G_PA_3,$O$13:$O$25)+SUMIF($L$13:$L$25,equi_13G_PA_3,$P$13:$P$25)","v":0},{"$f":"SUMIF($K$13:$K$25,equi_13G_PA_3,$M$13:$M$25)+SUMIF($L$13:$L$25,equi_13G_PA_3,$N$13:$N$25)","v":0},{"$f":"SUMIF($K$13:$K$25,equi_13G_PA_3,$N$13:$N$25)+SUMIF($L$13:$L$25,equi_13G_PA_3,$M$13:$M$25)","v":0},{"$f":"N29-O29","v":0},null,null,null,null,"3èmes","Pts","B+","B-","DifF"]
["SSHB - B","SAHB - B",{"$f":"equi_11G_PA_1","v":"STRASBOURG SUD A"},{"$f":"SUMIF($B$13:$B$25,equi_11G_PA_1,$F$13:$F$25)+SUMIF($C$13:$C$25,equi_11G_PA_1,$G$13:$G$25)","v":0},{"$f":"SUMIF($B$13:$B$25,equi_11G_PA_1,$D$13:$D$25)+SUMIF($C$13:$C$25,equi_11G_PA_1,$E$13:$E$25)","v":0},{"$f":"SUMIF($B$13:$B$25,equi_11G_PA_1,$E$13:$E$25)+SUMIF($C$13:$C$25,equi_11G_PA_1,$D$13:$D$25)","v":0},{"$f":"E30-F30","v":0},"Si égalité => A",null,null,null,{"$f":"equi_13G_PA_4","v":"ATH - M13"},{"$f":"SUMIF($K$13:$K$25,equi_13G_PA_4,$O$13:$O$25)+SUMIF($L$13:$L$25,equi_13G_PA_4,$P$13:$P$25)","v":0},{"$f":"SUMIF($K$13:$K$25,equi_13G_PA_4,$M$13:$M$25)+SUMIF($L$13:$L$25,equi_13G_PA_4,$N$13:$N$25)","v":0},{"$f":"SUMIF($K$13:$K$25,equi_13G_PA_4,$N$13:$N$25)+SUMIF($L$13:$L$25,equi_13G_PA_4,$M$13:$M$25)","v":0},{"$f":"N30-O30","v":0},"Si égalité => A",null,null,null,{"$f":"_3eme_poule_A_M11","v":"CVJM WALDDORFHÄSLACH"},{"$f":"SUMIF($B$13:$B$25,U30,$F$13:$F$25)+SUMIF($C$13:$C$25,U30,$G$13:$G$25)","v":0},{"$f":"SUMIF($B$13:$B$25,U30,$D$13:$D$25)+SUMIF($C$13:$C$25,U30,$E$13:$E$25)","v":0},{"$f":"SUMIF($B$13:$B$25,U30,$E$13:$E$25)+SUMIF($C$13:$C$25,U30,$D$13:$D$25)","v":0},{"$f":"W30-X30","v":0}]
["SAHB - A",null,{"$f":"equi_11G_PA_3","v":"CVJM WALDDORFHÄSLACH"},{"$f":"SUMIF($B$13:$B$25,equi_11G_PA_3,$F$13:$F$25)+SUMIF($C$13:$C$25,equi_11G_PA_3,$G$13:$G$25)","v":0},{"$f":"SUMIF($B$13:$B$25,equi_11G_PA_3,$D$13:$D$25)+SUMIF($C$13:$C$25,equi_11G_PA_3,$E$13:$E$25)","v":0},{"$f":"SUMIF($B$13:$B$25,equi_11G_PA_3,$E$13:$E$25)+SUMIF($C$13:$C$25,equi_11G_PA_3,$D$13:$D$25)","v":0},{"$f":"E31-F31","v":0},"Si égalité => A",null,null,null,{"$f":"equi_13G_PA_1","v":"TUS ALTENHEIM"},{"$f":"SUMIF($K$13:$K$25,equi_13G_PA_1,$O$13:$O$25)+SUMIF($L$13:$L$25,equi_13G_PA_1,$P$13:$P$25)","v":0},{"$f":"SUMIF($K$13:$K$25,equi_13G_PA_1,$M$13:$M$25)+SUMIF($L$13:$L$25,equi_13G_PA_1,$N$13:$N$25)","v":0},{"$f":"SUMIF($K$13:$K$25,equi_13G_PA_1,$N$13:$N$25)+SUMIF($L$13:$L$25,equi_13G_PA_1,$M$13:$M$25)","v":0},{"$f":"N31-O31","v":0},"Si égalité => A",null,null,null,{"$f":"_3eme_poule_C_M11","v":"HC ECKBOLSHEIM - M11"},{"$f":"SUMIF($K$13:$K$25,U31,$O$13:$O$25)+SUMIF($L$13:$L$25,U31,$P$13:$P$25)","v":0},{"$f":"SUMIF($K$13:$K$25,U31,$M$13:$M$25)+SUMIF($L$13:$L$25,U31,$N$13:$N$25)","v":0},{"$f":"SUMIF($K$13:$K$25,U31,$N$13:$N$25)+SUMIF($L$13:$L$25,U31,$M$13:$M$25)","v":0},{"$f":"W31-X31","v":0}]
["ESBM GBDH",null,{"$f":"equi_11G_PA_2","v":"SELESTAT AHB B"},{"$f":"SUMIF($B$13:$B$25,equi_11G_PA_2,$F$13:$F$25)+SUMIF($C$13:$C$25,equi_11G_PA_2,$G$13:$G$25)","v":0},{"$f":"SUMIF($B$13:$B$25,equi_11G_PA_2,$D$13:$D$25)+SUMIF($C$13:$C$25,equi_11G_PA_2,$E$13:$E$25)","v":0},{"$f":"SUMIF($B$13:$B$25,equi_11G_PA_2,$E$13:$E$25)+SUMIF($C$13:$C$25,equi_11G_PA_2,$D$13:$D$25)","v":0},{"$f":"E32-F32","v":0},"Si égalité => A",null,null,null,{"$f":"equi_13G_PA_2","v":"ESSAHB - M13"},{"$f":"SUMIF($K$13:$K$25,equi_13G_PA_2,$O$13:$O$25)+SUMIF($L$13:$L$25,equi_13G_PA_2,$P$13:$P$25)","v":0},{"$f":"SUMIF($K$13:$K$25,equi_13G_PA_2,$M$13:$M$25)+SUMIF($L$13:$L$25,equi_13G_PA_2,$N$13:$N$25)","v":0},{"$f":"SUMIF($K$13:$K$25,equi_13G_PA_2,$N$13:$N$25)+SUMIF($L$13:$L$25,equi_13G_PA_2,$M$13:$M$25)","v":0},{"$f":"N32-O32","v":0},"Si égalité => A",null,null,null,{"$f":"_3eme_poule_B_M11","v":"SELESTAT AHB A"},{"$f":"SUMIF($B$13:$B$25,U32,$F$13:$F$25)+SUMIF($C$13:$C$25,U32,$G$13:$G$25)","v":0},{"$f":"SUMIF($B$13:$B$25,U32,$D$13:$D$25)+SUMIF($C$13:$C$25,U32,$E$13:$E$25)","v":0},{"$f":"SUMIF($B$13:$B$25,U32,$E$13:$E$25)+SUMIF($C$13:$C$25,U32,$D$13:$D$25)","v":0},{"$f":"W32-X32","v":0}]
["ASPTT"]
[null,null,"Poule B","Pts","B+","B-","DifF",null,null,null,null,"Poule B","Pts","B+","B-","DifF",null,null,null,"En cas d'égalité noter ici le club sélectionné",{"$f":"U31","v":"HC ECKBOLSHEIM - M11"},"Pour les moins de 11"]
[null,null,{"$f":"equi_11G_PB_4","v":"ASPTT"},{"$f":"SUMIF($B$13:$B$25,equi_11G_PB_4,$F$13:$F$25)+SUMIF($C$13:$C$25,equi_11G_PB_4,$G$13:$G$25)","v":0},{"$f":"SUMIF($B$13:$B$25,equi_11G_PB_4,$D$13:$D$25)+SUMIF($C$13:$C$25,equi_11G_PB_4,$E$13:$E$25)","v":0},{"$f":"SUMIF($B$13:$B$25,equi_11G_PB_4,$E$13:$E$25)+SUMIF($C$13:$C$25,equi_11G_PB_4,$D$13:$D$25)","v":0},{"$f":"E35-F35","v":0},null,null,null,null,{"$f":"equi_13G_PB_4","v":"SR INGWILLER BOUXWILLER"},{"$f":"SUMIF($T$13:$T$25,equi_13G_PB_4,$X$13:$X$25)+SUMIF($U$13:$U$25,equi_13G_PB_4,$Y$13:$Y$25)","v":0},{"$f":"SUMIF($T$13:$T$25,equi_13G_PB_4,$V$13:$V$25)+SUMIF($U$13:$U$25,equi_13G_PB_4,$W$13:$W$25)","v":0},{"$f":"SUMIF($T$13:$T$25,equi_13G_PB_4,$W$13:$W$25)+SUMIF($U$13:$U$25,equi_13G_PB_4,$V$13:$V$25)","v":0},{"$f":"N35-O35","v":0}]
[null,null,{"$f":"equi_11G_PB_1","v":"STRASBOURG SUD B"},{"$f":"SUMIF($B$13:$B$25,equi_11G_PB_1,$F$13:$F$25)+SUMIF($C$13:$C$25,equi_11G_PB_1,$G$13:$G$25)","v":0},{"$f":"SUMIF($B$13:$B$25,equi_11G_PB_1,$D$13:$D$25)+SUMIF($C$13:$C$25,equi_11G_PB_1,$E$13:$E$25)","v":0},{"$f":"SUMIF($B$13:$B$25,equi_11G_PB_1,$E$13:$E$25)+SUMIF($C$13:$C$25,equi_11G_PB_1,$D$13:$D$25)","v":0},{"$f":"E36-F36","v":0},"Si égalité => A",null,null,null,{"$f":"equi_13G_PB_3","v":"TV MURI HANDBALL"},{"$f":"SUMIF($T$13:$T$25,equi_13G_PB_3,$X$13:$X$25)+SUMIF($U$13:$U$25,equi_13G_PB_3,$Y$13:$Y$25)","v":0},{"$f":"SUMIF($T$13:$T$25,equi_13G_PB_3,$V$13:$V$25)+SUMIF($U$13:$U$25,equi_13G_PB_3,$W$13:$W$25)","v":0},{"$f":"SUMIF($T$13:$T$25,equi_13G_PB_3,$W$13:$W$25)+SUMIF($U$13:$U$25,equi_13G_PB_3,$V$13:$V$25)","v":0},{"$f":"N36-O36","v":0},"Si égalité => A"]
[null,null,{"$f":"equi_11G_PB_2","v":"SELESTAT AHB A"},{"$f":"SUMIF($B$13:$B$25,equi_11G_PB_2,$F$13:$F$25)+SUMIF($C$13:$C$25,equi_11G_PB_2,$G$13:$G$25)","v":0},{"$f":"SUMIF($B$13:$B$25,equi_11G_PB_2,$D$13:$D$25)+SUMIF($C$13:$C$25,equi_11G_PB_2,$E$13:$E$25)","v":0},{"$f":"SUMIF($B$13:$B$25,equi_11G_PB_2,$E$13:$E$25)+SUMIF($C$13:$C$25,equi_11G_PB_2,$D$13:$D$25)","v":0},{"$f":"E37-F37","v":0},"Si égalité => A",null,null,null,{"$f":"equi_13G_PB_2","v":"SR INGWILLER BOUXWILLER"},{"$f":"SUMIF($T$13:$T$25,equi_13G_PB_2,$X$13:$X$25)+SUMIF($U$13:$U$25,equi_13G_PB_2,$Y$13:$Y$25)","v":0},{"$f":"SUMIF($T$13:$T$25,equi_13G_PB_2,$V$13:$V$25)+SUMIF($U$13:$U$25,equi_13G_PB_2,$W$13:$W$25)","v":0},{"$f":"SUMIF($T$13:$T$25,equi_13G_PB_2,$W$13:$W$25)+SUMIF($U$13:$U$25,equi_13G_PB_2,$V$13:$V$25)","v":0},{"$f":"N37-O37","v":0},"Si égalité => A"]
[null,null,{"$f":"equi_11G_PB_3","v":"ESBM GBDH"},{"$f":"SUMIF($B$13:$B$25,equi_11G_PB_3,$F$13:$F$25)+SUMIF($C$13:$C$25,equi_11G_PB_3,$G$13:$G$25)","v":0},{"$f":"SUMIF($B$13:$B$25,equi_11G_PB_3,$D$13:$D$25)+SUMIF($C$13:$C$25,equi_11G_PB_3,$E$13:$E$25)","v":0},{"$f":"SUMIF($B$13:$B$25,equi_11G_PB_3,$E$13:$E$25)+SUMIF($C$13:$C$25,equi_11G_PB_3,$D$13:$D$25)","v":0},{"$f":"E38-F38","v":0},"Si égalité => A",null,null,null,{"$f":"equi_13G_PB_1","v":"STRASBOURG SUD HB"},{"$f":"SUMIF($T$13:$T$25,equi_13G_PB_1,$X$13:$X$25)+SUMIF($U$13:$U$25,equi_13G_PB_1,$Y$13:$Y$25)","v":0},{"$f":"SUMIF($T$13:$T$25,equi_13G_PB_1,$V$13:$V$25)+SUMIF($U$13:$U$25,equi_13G_PB_1,$W$13:$W$25)","v":0},{"$f":"SUMIF($T$13:$T$25,equi_13G_PB_1,$W$13:$W$25)+SUMIF($U$13:$U$25,equi_13G_PB_1,$V$13:$V$25)","v":0},{"$f":"N38-O38","v":0},"Si égalité => A",null,null,"En cas d'égalité noter ici le club sélectionné",{"$f":"U43","v":"SR INGWILLER BOUXWILLER"},"Pour les moins de 13"]
[]
[null,null,"Poule C","Pts","B+","B-","DifF",null,null,null,null,"Poule C","Pts","B+","B-","DifF",null,null,null,null,{"$f":"\"Meilleur 3ème des \"&R1","v":"Meilleur 3ème des MOINS DE 13 MASCULINS"}]
[null,null,{"$f":"equi_11G_PC_1","v":"ESSAHB - M11"},{"$f":"SUMIF($K$13:$K$25,equi_11G_PC_1,$O$13:$O$25)+SUMIF($L$13:$L$25,equi_11G_PC_1,$P$13:$P$25)","v":0},{"$f":"SUMIF($K$13:$K$25,equi_11G_PC_1,$M$13:$M$25)+SUMIF($L$13:$L$25,equi_11G_PC_1,$N$13:$N$25)","v":0},{"$f":"SUMIF($K$13:$K$25,equi_11G_PC_1,$N$13:$N$25)+SUMIF($L$13:$L$25,equi_11G_PC_1,$M$13:$M$25)","v":0},{"$f":"E41-F41","v":0},null,null,null,null,{"$f":"equi_13G_PC_3","v":"VAHB - VERDUN"},{"$f":"SUMIF($T$13:$T$25,equi_13G_PC_3,$X$13:$X$25)+SUMIF($U$13:$U$25,equi_13G_PC_3,$Y$13:$Y$25)","v":0},{"$f":"SUMIF($T$13:$T$25,equi_13G_PC_3,$V$13:$V$25)+SUMIF($U$13:$U$25,equi_13G_PC_3,$W$13:$W$25)","v":0},{"$f":"SUMIF($T$13:$T$25,equi_13G_PC_3,$W$13:$W$25)+SUMIF($U$13:$U$25,equi_13G_PC_3,$V$13:$V$25)","v":0},{"$f":"N41-O41","v":0},null,null,null,null,"3èmes","Pts","B+","B-","DifF"]
[null,null,{"$f":"equi_11G_PC_4","v":"HSG HANAUERLAND"},{"$f":"SUMIF($K$13:$K$25,equi_11G_PC_4,$O$13:$O$25)+SUMIF($L$13:$L$25,equi_11G_PC_4,$P$13:$P$25)","v":0},{"$f":"SUMIF($K$13:$K$25,equi_11G_PC_4,$M$13:$M$25)+SUMIF($L$13:$L$25,equi_11G_PC_4,$N$13:$N$25)","v":0},{"$f":"SUMIF($K$13:$K$25,equi_11G_PC_4,$N$13:$N$25)+SUMIF($L$13:$L$25,equi_11G_PC_4,$M$13:$M$25)","v":0},{"$f":"E42-F42","v":0},"Si égalité => A",null,null,null,{"$f":"equi_13G_PC_1","v":"ASH - HAGUENAU"},{"$f":"SUMIF($T$13:$T$25,equi_13G_PC_1,$X$13:$X$25)+SUMIF($U$13:$U$25,equi_13G_PC_1,$Y$13:$Y$25)","v":0},{"$f":"SUMIF($T$13:$T$25,equi_13G_PC_1,$V$13:$V$25)+SUMIF($U$13:$U$25,equi_13G_PC_1,$W$13:$W$25)","v":0},{"$f":"SUMIF($T$13:$T$25,equi_13G_PC_1,$W$13:$W$25)+SUMIF($U$13:$U$25,equi_13G_PC_1,$V$13:$V$25)","v":0},{"$f":"N42-O42","v":0},"Si égalité => A",null,null,null,{"$f":"_3eme_poule_C_M13","v":"US SAINT VIT"},{"$f":"SUMIF($T$13:$T$25,U42,$X$13:$X$25)+SUMIF($U$13:$U$25,U42,$Y$13:$Y$25)","v":0},{"$f":"SUMIF($T$13:$T$25,U42,$V$13:$V$25)+SUMIF($U$13:$U$25,U42,$W$13:$W$25)","v":0},{"$f":"SUMIF($T$13:$T$25,U42,$W$13:$W$25)+SUMIF($U$13:$U$25,U42,$V$13:$V$25)","v":0},{"$f":"W42-X42","v":0}]
[null,null,{"$f":"equi_11G_PC_2","v":"HC ECKBOLSHEIM - M11"},{"$f":"SUMIF($K$13:$K$25,equi_11G_PC_2,$O$13:$O$25)+SUMIF($L$13:$L$25,equi_11G_PC_2,$P$13:$P$25)","v":0},{"$f":"SUMIF($K$13:$K$25,equi_11G_PC_2,$M$13:$M$25)+SUMIF($L$13:$L$25,equi_11G_PC_2,$N$13:$N$25)","v":0},{"$f":"SUMIF($K$13:$K$25,equi_11G_PC_2,$N$13:$N$25)+SUMIF($L$13:$L$25,equi_11G_PC_2,$M$13:$M$25)","v":0},{"$f":"E43-F43","v":0},"Si égalité => A",null,null,null,{"$f":"equi_13G_PC_2","v":"US SAINT VIT"},{"$f":"SUMIF($T$13:$T$25,equi_13G_PC_2,$X$13:$X$25)+SUMIF($U$13:$U$25,equi_13G_PC_2,$Y$13:$Y$25)","v":0},{"$f":"SUMIF($T$13:$T$25,equi_13G_PC_2,$V$13:$V$25)+SUMIF($U$13:$U$25,equi_13G_PC_2,$W$13:$W$25)","v":0},{"$f":"SUMIF($T$13:$T$25,equi_13G_PC_2,$W$13:$W$25)+SUMIF($U$13:$U$25,equi_13G_PC_2,$V$13:$V$25)","v":0},{"$f":"N43-O43","v":0},"Si égalité => A",null,null,null,{"$f":"_3eme_poule_B_M13","v":"SR INGWILLER BOUXWILLER"},{"$f":"SUMIF($T$13:$T$25,U43,$X$13:$X$25)+SUMIF($U$13:$U$25,U43,$Y$13:$Y$25)","v":0},{"$f":"SUMIF($T$13:$T$25,U43,$V$13:$V$25)+SUMIF($U$13:$U$25,U43,$W$13:$W$25)","v":0},{"$f":"SUMIF($T$13:$T$25,U43,$W$13:$W$25)+SUMIF($U$13:$U$25,U43,$V$13:$V$25)","v":0},{"$f":"W43-X43","v":0}]
[null,null,{"$f":"equi_11G_PC_3","v":"ATH - M11"},{"$f":"SUMIF($K$13:$K$25,equi_11G_PC_3,$O$13:$O$25)+SUMIF($L$13:$L$25,equi_11G_PC_3,$P$13:$P$25)","v":0},{"$f":"SUMIF($K$13:$K$25,equi_11G_PC_3,$M$13:$M$25)+SUMIF($L$13:$L$25,equi_11G_PC_3,$N$13:$N$25)","v":0},{"$f":"SUMIF($K$13:$K$25,equi_11G_PC_3,$N$13:$N$25)+SUMIF($L$13:$L$25,equi_11G_PC_3,$M$13:$M$25)","v":0},{"$f":"E44-F44","v":0},"Si égalité => A",null,null,null,{"$f":"equi_13G_PC_4","v":"CVJM WALDDORFHÄSLACH"},{"$f":"SUMIF($T$13:$T$25,equi_13G_PC_4,$X$13:$X$25)+SUMIF($U$13:$U$25,equi_13G_PC_4,$Y$13:$Y$25)","v":0},{"$f":"SUMIF($T$13:$T$25,equi_13G_PC_4,$V$13:$V$25)+SUMIF($U$13:$U$25,equi_13G_PC_4,$W$13:$W$25)","v":0},{"$f":"SUMIF($T$13:$T$25,equi_13G_PC_4,$W$13:$W$25)+SUMIF($U$13:$U$25,equi_13G_PC_4,$V$13:$V$25)","v":0},{"$f":"N44-O44","v":0},"Si égalité => A",null,null,null,{"$f":"_3eme_poule_A_M13","v":"TUS ALTENHEIM"},{"$f":"SUMIF($K$13:$K$25,U44,$O$13:$O$25)+SUMIF($L$13:$L$25,U44,$P$13:$P$25)","v":0},{"$f":"SUMIF($K$13:$K$25,U44,$M$13:$M$25)+SUMIF($L$13:$L$25,U44,$N$13:$N$25)","v":0},{"$f":"SUMIF($K$13:$K$25,U44,$N$13:$N$25)+SUMIF($L$13:$L$25,U44,$M$13:$M$25)","v":0},{"$f":"W44-X44","v":0}]
[]
[]
[null,null,null,null,null,null,null,null,null,null,null,null,null,null,null,null,null,null,null,null,{"$f":"\"Classement de 1 à 6 \"&A1","v":"Classement de 1 à 6 MOINS DE 11 MIXTE"}]
[null,null,null,null,null,null,null,null,null,null,null,null,null,null,null,null,null,null,null,null,"1 à 6","Pts","B+","B-","DifF"]
[null,null,null,null,null,null,null,null,null,null,null,null,null,null,null,null,null,null,null,null,{"$f":"_1er_poule_B_M11","v":"ASPTT"},{"$f":"SUMIF($B$13:$B$25,U49,$F$13:$F$25)+SUMIF($C$13:$C$25,U49,$G$13:$G$25)","v":0},{"$f":"SUMIF($B$13:$B$25,U49,$D$13:$D$25)+SUMIF($C$13:$C$25,U49,$E$13:$E$25)","v":0},{"$f":"SUMIF($B$13:$B$25,U49,$E$13:$E$25)+SUMIF($C$13:$C$25,U49,$D$13:$D$25)","v":0},{"$f":"W49-X49","v":0}]
[null,null,null,null,null,null,null,null,null,null,null,null,null,null,null,null,null,null,null,null,{"$f":"_1er_poule_A_M11","v":"SARREBOURG MSH"},{"$f":"SUMIF($B$13:$B$25,U50,$F$13:$F$25)+SUMIF($C$13:$C$25,U50,$G$13:$G$25)","v":0},{"$f":"SUMIF($B$13:$B$25,U50,$D$13:$D$25)+SUMIF($C$13:$C$25,U50,$E$13:$E$25)","v":0},{"$f":"SUMIF($B$13:$B$25,U50,$E$13:$E$25)+SUMIF($C$13:$C$25,U50,$D$13:$D$25)","v":0},0]
[null,null,null,null,null,null,null,null,null,null,null,null,null,null,null,null,null,null,null,null,{"$f":"_2eme_poule_B_M11","v":"STRASBOURG SUD B"},{"$f":"SUMIF($B$13:$B$25,U51,$F$13:$F$25)+SUMIF($C$13:$C$25,U51,$G$13:$G$25)","v":0},{"$f":"SUMIF($B$13:$B$25,U51,$D$13:$D$25)+SUMIF($C$13:$C$25,U51,$E$13:$E$25)","v":0},{"$f":"SUMIF($B$13:$B$25,U51,$E$13:$E$25)+SUMIF($C$13:$C$25,U51,$D$13:$D$25)","v":0},0]
[null,null,"A : Si égalité : goal avérage particulier entre les 2 équipes concernées",null,null,null,null,null,null,null,null,null,null,null,null,null,null,null,null,null,{"$f":"_2eme_poule_A_M11","v":"STRASBOURG SUD A"},{"$f":"SUMIF($B$13:$B$25,U52,$F$13:$F$25)+SUMIF($C$13:$C$25,U52,$G$13:$G$25)","v":0},{"$f":"SUMIF($B$13:$B$25,U52,$D$13:$D$25)+SUMIF($C$13:$C$25,U52,$E$13:$E$25)","v":0},{"$f":"SUMIF($B$13:$B$25,U52,$E$13:$E$25)+SUMIF($C$13:$C$25,U52,$D$13:$D$25)","v":0},0]
[null,null,"Si toujours égalité, séance jet de 7m",null,null,null,null,null,null,null,null,null,null,null,null,null,null,null,null,null,{"$f":"_1er_poule_C_M11","v":"ESSAHB - M11"},{"$f":"SUMIF($K$13:$K$25,U53,$O$13:$O$25)+SUMIF($L$13:$L$25,U53,$P$13:$P$25)","v":0},{"$f":"SUMIF($K$13:$K$25,U53,$M$13:$M$25)+SUMIF($L$13:$L$25,U53,$N$13:$N$25)","v":0},{"$f":"SUMIF($K$13:$K$25,U53,$N$13:$N$25)+SUMIF($L$13:$L$25,U53,$M$13:$M$25)","v":0},0]
[null,null,null,null,null,null,null,null,null,null,null,null,null,null,null,null,null,null,null,null,{"$f":"_2eme_poule_C_M11","v":"HSG HANAUERLAND"},{"$f":"SUMIF($K$13:$K$25,U54,$O$13:$O$25)+SUMIF($L$13:$L$25,U54,$P$13:$P$25)","v":0},{"$f":"SUMIF($K$13:$K$25,U54,$M$13:$M$25)+SUMIF($L$13:$L$25,U54,$N$13:$N$25)","v":0},{"$f":"SUMIF($K$13:$K$25,U54,$N$13:$N$25)+SUMIF($L$13:$L$25,U54,$M$13:$M$25)","v":0},0]
[]
[null,null,null,null,null,null,null,null,null,null,null,null,null,null,null,null,null,null,null,null,{"$f":"\"Classement de 1 à 6 \"&R1","v":"Classement de 1 à 6 MOINS DE 13 MASCULINS"}]
[null,null,null,null,null,null,null,null,null,null,null,null,null,null,null,null,null,null,null,null,"1 à 6","Pts","B+","B-","DifF"]
[null,null,null,null,null,null,null,null,null,null,null,null,null,null,null,null,null,null,null,null,{"$f":"_1er_poule_B_M13","v":"SR INGWILLER BOUXWILLER"},{"$f":"SUMIF($T$13:$T$25,U58,$X$13:$X$25)+SUMIF($U$13:$U$25,U58,$Y$13:$Y$25)","v":0},{"$f":"SUMIF($T$13:$T$25,U58,$V$13:$V$25)+SUMIF($U$13:$U$25,U58,$W$13:$W$25)","v":0},{"$f":"SUMIF($T$13:$T$25,U58,$W$13:$W$25)+SUMIF($U$13:$U$25,U58,$V$13:$V$25)","v":0},{"$f":"W58-X58","v":0}]
[null,null,null,null,null,null,null,null,null,null,null,null,null,null,null,null,null,null,null,null,{"$f":"_1er_poule_C_M13","v":"VAHB - VERDUN"},{"$f":"SUMIF($T$13:$T$25,U59,$X$13:$X$25)+SUMIF($U$13:$U$25,U59,$Y$13:$Y$25)","v":0},{"$f":"SUMIF($T$13:$T$25,U59,$V$13:$V$25)+SUMIF($U$13:$U$25,U59,$W$13:$W$25)","v":0},{"$f":"SUMIF($T$13:$T$25,U59,$W$13:$W$25)+SUMIF($U$13:$U$25,U59,$V$13:$V$25)","v":0},0]
[null,null,null,null,null,null,null,null,null,null,null,null,null,null,null,null,null,null,null,null,{"$f":"_2eme_poule_C_M13","v":"ASH - HAGUENAU"},{"$f":"SUMIF($T$13:$T$25,U60,$X$13:$X$25)+SUMIF($U$13:$U$25,U60,$Y$13:$Y$25)","v":0},{"$f":"SUMIF($T$13:$T$25,U60,$V$13:$V$25)+SUMIF($U$13:$U$25,U60,$W$13:$W$25)","v":0},{"$f":"SUMIF($T$13:$T$25,U60,$W$13:$W$25)+SUMIF($U$13:$U$25,U60,$V$13:$V$25)","v":0},0]
[null,null,null,null,null,null,null,null,null,null,null,null,null,null,null,null,null,null,null,null,{"$f":"_2eme_poule_B_M13","v":"TV MURI HANDBALL"},{"$f":"SUMIF($T$13:$T$25,U61,$X$13:$X$25)+SUMIF($U$13:$U$25,U61,$Y$13:$Y$25)","v":0},{"$f":"SUMIF($T$13:$T$25,U61,$V$13:$V$25)+SUMIF($U$13:$U$25,U61,$W$13:$W$25)","v":0},{"$f":"SUMIF($T$13:$T$25,U61,$W$13:$W$25)+SUMIF($U$13:$U$25,U61,$V$13:$V$25)","v":0},0]
[null,null,null,null,null,null,null,null,null,null,null,null,null,null,null,null,null,null,null,null,{"$f":"_1er_poule_A_M13","v":"HC ECKBOLSHEIM - M13"},{"$f":"SUMIF($K$13:$K$25,U62,$O$13:$O$25)+SUMIF($L$13:$L$25,U62,$P$13:$P$25)","v":0},{"$f":"SUMIF($K$13:$K$25,U62,$M$13:$M$25)+SUMIF($L$13:$L$25,U62,$N$13:$N$25)","v":0},{"$f":"SUMIF($K$13:$K$25,U62,$N$13:$N$25)+SUMIF($L$13:$L$25,U62,$M$13:$M$25)","v":0},0]
[null,null,null,null,null,null,null,null,null,null,null,null,null,null,null,null,null,null,null,null,{"$f":"_2eme_poule_A_M13","v":"ATH - M13"},{"$f":"SUMIF($K$13:$K$25,U63,$O$13:$O$25)+SUMIF($L$13:$L$25,U63,$P$13:$P$25)","v":0},{"$f":"SUMIF($K$13:$K$25,U63,$M$13:$M$25)+SUMIF($L$13:$L$25,U63,$N$13:$N$25)","v":0},{"$f":"SUMIF($K$13:$K$25,U63,$N$13:$N$25)+SUMIF($L$13:$L$25,U63,$M$13:$M$25)","v":0},0]
[]
[]
[]
[]
[]
[]
[]
[]
[]
[]
[]
[]
[]
["M13GPA1","M13GPB1","M13GPC1"]
["M13GPA2","M13GPB2","M13GPC2"]
["M13GPA3","M13GPB3","M13GPC3"]
["M13GPA4","M13GPB4","M13GPC4"]

{"sheet":"Finales M11","index":4,"n_rows":99,"n_cols":39,"rows_kept":99,"cut":false,"hidden":false,"merged":[]}
[null,null,null,null,null,null,null,null,null,null,null,null,null,null,null,null,null,null,null,null,null,null,null,null,null,null,null,{"$f":"LEFT(CELL(\"filename\",Score!K4),FIND(\"[\",CELL(\"filename\",Score!K4))-2)&\"\\\"&\"partie_2_m11.html\"","v":"C:\\Users\\fseys\\Dropbox (Compte personnel)\\! ! ! Tournoi Noël 2019\\! Tournoi\\partie_2_m11.html"}]
[null,null,null,null,"RESULTATS ET CLASSEMENTS PHASES FINALES",null,null,null,null,null,null,null,null,null,null,null,null,null,null,null,null,null,null,null,null,null,null,"Date de derni&egrave;re modification : 02/12/2019 14:36:14"]
[null,null,null,null,{"$f":"Score!A1","v":"MOINS DE 11 MIXTE"}]
[]
[null,null,null,null,null,"FINALES","H","Sc-R","Pt-R","Pt-V","Sc-V","Arbitrage",null,null,"Sanctions"]
[null,1,null,null,"Quart de finale 1","M1",{"$f":"HOUR(AM6)&\"h\"&TEXT(MINUTE(AM6),\"00\")","v":"13h40"},{"$f":"IF(ISBLANK(Score!D24),\"-\",Finaliste_M11_1)","v":"-"},null,null,{"$f":"IF(ISBLANK(Score!D24),\"-\",Finaliste_M11_8)","v":"-"},null,null,null,null,null,null,null,null,null,null,"1er",{"$f":"IF(ISBLANK(I21),\"-\",IF(I21>J21,H21,K21))","v":"-"},null,"1er",{"$f":"IF(ISBLANK(I20),\"-\",IF(I20>J20,H20,K20))","v":"-"},null,null,null,null,null,null,null,null,null,null,null,null,{"$f":"Fin_matin+Durée2","v":"13:40:00"}]
[null,2,null,null,"Quart de finale 3","M2","13h57",{"$f":"IF(ISBLANK(Score!D24),\"-\",Finaliste_M11_3)","v":"-"},null,null,{"$f":"IF(ISBLANK(Score!D24),\"-\",Finaliste_M11_6)","v":"-"},null,null,null,null,null,null,null,null,null,null,"2eme",{"$f":"IF(ISBLANK(I21),\"-\",IF(I21<J21,H21,K21))","v":"-"},null,"2eme",{"$f":"IF(ISBLANK(I20),\"-\",IF(I20<J20,H20,K20))","v":"-"},null,null,null,null,null,null,null,null,null,null,null,null,{"$f":"AM6+MeP+Durée","v":"13:57:00"}]
[null,3,null,null,"Quart de finale 2","M3","14h14",{"$f":"IF(ISBLANK(Score!D24),\"-\",Finaliste_M11_4)","v":"-"},null,null,{"$f":"IF(ISBLANK(Score!D24),\"-\",Finaliste_M11_5)","v":"-"},null,null,null,null,null,null,null,null,null,null,"3eme",{"$f":"IF(ISBLANK(I19),\"-\",IF(I19>J19,H19,K19))","v":"-"},null,"3eme",{"$f":"IF(ISBLANK(I18),\"-\",IF(I18>J18,H18,K18))","v":"-"},null,null,null,null,null,null,null,null,null,null,null,null,"14:14:00"]
[null,4,null,null,"Quart de finale 4","M4","14h31",{"$f":"IF(ISBLANK(Score!D24),\"-\",Finaliste_M11_2)","v":"-"},null,null,{"$f":"IF(ISBLANK(Score!D24),\"-\",Finaliste_M11_7)","v":"-"},null,null,null,null,null,null,null,null,null,null,"4eme",{"$f":"IF(ISBLANK(I19),\"-\",IF(I19<J19,H19,K19))","v":"-"},null,"4eme",{"$f":"IF(ISBLANK(I18),\"-\",IF(I18<J18,H18,K18))","v":"-"},null,null,null,null,null,null,null,null,null,null,null,null,"14:31:00"]
[null,5,null,null,"Demi-Finale 1 Esp","M5","14h48",{"$f":"IF(ISBLANK(Score!D24),\"-\",_3eme_3eme_M11)","v":"-"},null,null,{"$f":"IF(ISBLANK(Score!D24),\"-\",_4eme_poule_B_M11)","v":"-"},null,null,null,null,null,null,null,null,null,null,"5eme",{"$f":"IF(ISBLANK(I17),\"-\",IF(I17>J17,H17,K17))","v":"-"},null,null,null,null,null,null,null,null,null,null,null,null,null,null,null,"14:48:00"]
[null,6,null,null,"Demi-Finale 2 Esp","M6","15h05",{"$f":"IF(ISBLANK(Score!D24),\"-\",_4eme_poule_C_M11)","v":"-"},null,null,{"$f":"IF(ISBLANK(Score!D24),\"-\",_4eme_poule_A_M11)","v":"-"},null,null,null,null,null,null,null,null,null,null,"6eme",{"$f":"IF(ISBLANK(I17),\"-\",IF(I17<J17,H17,K17))","v":"-"},null,null,null,null,null,null,null,null,null,null,null,null,null,null,null,"15:05:00"]
[null,7,null,null,"Petite Demi Elite 1 ","M7","15h22",{"$f":"IF(ISBLANK(I6),\"Perdant M1\",IF(I6>J6,K6,H6))","v":"Perdant M1"},null,null,{"$f":"IF(ISBLANK(I8),\"Perdant M3\",IF(I8>J8,K8,H8))","v":"Perdant M3"},null,null,null,null,null,null,null,null,null,null,"7eme",{"$f":"IF(ISBLANK(I16),\"-\",IF(I16>J16,H16,K16))","v":"-"},null,null,null,null,null,null,null,null,null,null,null,null,null,null,null,"15:22:00"]
[null,8,null,null,"Petite Demi Elite 2","M8","15h39",{"$f":"IF(ISBLANK(I7),\"Perdant M2\",IF(I7>J7,K7,H7))","v":"Perdant M2"},null,null,{"$f":"IF(ISBLANK(I9),\"Perdant M4\",IF(I9>J9,K9,H9))","v":"Perdant M4"},null,null,null,null,null,null,null,null,null,null,"8eme",{"$f":"IF(ISBLANK(I16),\"-\",IF(I16<J16,H16,K16))","v":"-"},null,null,null,null,null,null,null,null,null,null,null,null,null,null,null,"15:39:00"]
[null,9,null,null,"Demi Elite 1","M9","15h56",{"$f":"IF(ISBLANK(I6),\"Gagnant M1\",IF(I6>J6,H6,K6))","v":"Gagnant M1"},null,null,{"$f":"IF(ISBLANK(I8),\"Gagnant M3\",IF(I8<J8,K8,H8))","v":"Gagnant M3"},null,null,null,null,null,null,null,null,null,null,null,null,null,null,null,null,null,null,null,null,null,null,null,null,null,null,null,"15:56:00"]
[null,10,null,null,"Demi Elite 2","M10","16h13",{"$f":"IF(ISBLANK(I7),\"Gagnant M2\",IF(I7>J7,H7,K7))","v":"Gagnant M2"},null,null,{"$f":"IF(ISBLANK(I9),\"Gagnant M4\",IF(I9<J9,K9,H9))","v":"Gagnant M4"},null,null,null,null,null,null,null,null,null,"SI EGALITE A L A FIN D'UN MATCH => SCEANCE DE JET DE 7M",null,null,null,null,null,null,null,null,null,null,null,null,null,null,null,null,null,"16:13:00"]
[null,11,null,null,"Classement 7-8","M11","16h30",{"$f":"IF(ISBLANK(I12),\"Perdant M7\",IF(I12>J12,K12,H12))","v":"Perdant M7"},null,null,{"$f":"IF(ISBLANK(I13),\"Perdant M8\",IF(I13>J13,K13,H13))","v":"Perdant M8"},null,null,null,null,null,null,null,null,null,"(3 jets par équipe puis mort subite)",null,null,null,null,null,null,null,null,null,null,null,null,null,null,null,null,null,"16:30:00"]
[null,12,null,null,"Classement 5-6","M12","16h47",{"$f":"IF(ISBLANK(I12),\"Gagnant M7\",IF(I12>J12,H12,K12))","v":"Gagnant M7"},null,null,{"$f":"IF(ISBLANK(I13),\"Gagnant M8\",IF(I13<J13,K13,H13))","v":"Gagnant M8"},null,null,null,null,null,null,null,null,null,null,null,null,null,null,null,null,null,null,null,null,null,null,null,null,null,null,null,"16:47:00"]
[null,13,null,null,"Petite Finale Espoir","M13","17h04",{"$f":"IF(ISBLANK(I10),\"Perdant M5\",IF(I10>J10,K10,H10))","v":"Perdant M5"},null,null,{"$f":"IF(ISBLANK(I11),\"Perdant M6\",IF(I11>J11,K11,H11))","v":"Perdant M6"},null,null,null,null,null,null,null,null,null,null,null,null,null,null,null,null,null,null,null,null,null,null,null,null,null,null,null,"17:04:00"]
[null,14,null,null,"Petite finale Elite","M14","16h59",{"$f":"IF(ISBLANK(I14),\"Perdant M9\",IF(I14<J14,H14,K14))","v":"Perdant M9"},null,null,{"$f":"IF(ISBLANK(I15),\"Perdant M10\",IF(I15<J15,H15,K15))","v":"Perdant M10"},null,null,null,null,null,null,null,null,null,null,null,null,null,null,null,null,null,null,null,null,null,null,null,null,null,null,null,"16:59:00"]
[null,15,null,null,"Finale Espoir","M15","17h16",{"$f":"IF(ISBLANK(I10),\"Gagnant M5\",IF(I10<J10,K10,H10))","v":"Gagnant M5"},null,null,{"$f":"IF(ISBLANK(I11),\"Gagnant M6\",IF(I11<J11,K11,H11))","v":"Gagnant M6"},null,null,null,null,null,null,null,null,null,null,null,null,null,null,null,null,null,null,null,null,null,null,null,null,null,null,null,"17:16:00"]
[null,16,null,null,"Finale Elite","M16","17h33",{"$f":"IF(ISBLANK(I14),\"Gagnant M9\",IF(I14>J14,H14,K14))","v":"Gagnant M9"},null,null,{"$f":"IF(ISBLANK(I15),\"Gagnant M10\",IF(I15<J15,K15,H15))","v":"Gagnant M10"},null,null,null,null,null,null,null,null,null,null,null,null,null,null,null,null,null,null,null,null,null,null,null,null,null,null,null,"17:33:00"]
[null,null,null,null,null,null,null,"TOURNOI HANDBALL JEUNES\nSTRASBOURG NOËL 2019",null,null,null,null,null,null,null,null,"FINALES",null,null,null,null,null,null,null,null,"MOINS DE 11 ANS, MIXTES\nDIMANCHE 22 DECEMBRE 2019"]
[null,null,null,null,null,null,null,null,null,null,"RESULTATS ET CLASSEMENTS PHASES FINALES"]
[null,null,null,null,null,null,null,"QUART",null,null,null,null,null,"QUART",null,null,null,null,null,null,null,null,null,null,null,"QUART",null,null,null,null,null,"QUART"]
[null,null,null,null,null,null,null,"M1",null,null,null,null,null,"M3",null,null,null,null,null,null,null,null,null,null,null,"M2",null,null,null,null,null,"M4"]
[null,null,null,null,null,null,null,{"$f":"G6","v":"13h40"},null,null,null,null,null,{"$f":"G8","v":"14h14"},null,null,null,null,null,null,null,null,null,null,null,{"$f":"G7","v":"13h57"},null,null,null,null,null,{"$f":"G9","v":"14h31"}]
[null,null,null,null,null,null,null,{"$f":"H6","v":"-"},{"$f":"I6","v":0},{"$f":"J6","v":0},{"$f":"K6","v":"-"},null,null,{"$f":"H8","v":"-"},{"$f":"I8","v":0},{"$f":"J8","v":0},{"$f":"K8","v":"-"},null,null,null,null,null,null,null,null,{"$f":"H7","v":"-"},{"$f":"I7","v":0},{"$f":"J7","v":0},{"$f":"K7","v":"-"},null,null,{"$f":"H9","v":"-"},{"$f":"I9","v":0},{"$f":"J9","v":0},{"$f":"K9","v":"-"}]
[]
[null,null,null,null,null,null,null,null,null,null,"PETITE DEMIE",null,null,null,null,null,null,null,null,null,null,null,null,null,null,null,null,null,"PETITE DEMIE"]
[null,null,null,null,null,null,null,null,null,null,"M7",null,null,null,null,null,null,null,null,null,null,null,null,null,null,null,null,null,"M8"]
[null,null,null,null,null,null,null,null,null,null,{"$f":"G12","v":"15h22"},null,null,null,null,null,null,null,null,null,null,null,null,null,null,null,null,null,{"$f":"G13","v":"15h39"}]
[null,null,null,null,null,null,null,null,null,null,{"$f":"H12","v":"Perdant M1"},{"$f":"I12","v":0},{"$f":"J12","v":0},{"$f":"K12","v":"Perdant M3"},null,null,"CLASSEMENT 1",null,null,null,null,null,null,null,null,null,null,null,{"$f":"H13","v":"Perdant M2"},{"$f":"I13","v":0},{"$f":"J13","v":0},{"$f":"K13","v":"Perdant M4"}]
[null,null,null,null,null,null,null,null,null,null,null,null,null,null,null,null,"M11"]
[null,null,null,null,null,null,null,null,null,null,null,null,null,null,null,null,{"$f":"G16","v":"16h30"}]
[null,null,null,null,null,null,null,null,null,null,null,null,null,null,null,null,{"$f":"H16","v":"Perdant M7"},{"$f":"I16","v":0},{"$f":"J16","v":0},{"$f":"K16","v":"Perdant M8"}]
[null,null,null,null,null,null,null,null,null,null,null,null,null,null,null,null,null,null,null,null,null,null,"CLASSEMENT 2"]
[null,null,null,null,null,null,null,null,null,null,null,null,null,null,null,null,null,null,null,null,null,null,"M12"]
[null,null,null,null,null,null,null,null,null,null,null,null,null,null,null,null,null,null,null,null,null,null,{"$f":"G17","v":"16h47"}]
[null,null,null,null,null,null,null,null,null,null,null,null,null,null,null,null,null,null,null,null,null,null,{"$f":"H17","v":"Gagnant M7"},{"$f":"I17","v":0},{"$f":"J17","v":0},{"$f":"K17","v":"Gagnant M8"}]
[]
[null,null,null,null,null,null,null,null,null,null,null,null,null,null,null,null,null,null,null,"PETITE FINALE"]
[null,null,null,null,null,null,null,null,null,null,null,null,null,null,null,null,null,null,null,"M14"]
[null,null,null,null,null,null,null,null,null,null,null,null,null,null,null,null,null,null,null,{"$f":"G19","v":"16h59"}]
[null,null,null,null,null,null,null,null,null,null,"DEMIE",null,null,null,null,null,null,null,null,{"$f":"H19","v":"Perdant M9"},{"$f":"I19","v":0},{"$f":"J19","v":0},{"$f":"K19","v":"Perdant M10"},null,null,null,null,null,"DEMIE"]
[null,null,null,null,null,null,null,null,null,null,"M9",null,null,null,null,null,null,null,null,null,null,null,null,null,null,null,null,null,"M10"]
[null,null,null,null,null,null,null,null,null,null,{"$f":"G14","v":"15h56"},null,null,null,null,null,null,null,null,null,null,null,null,null,null,null,null,null,{"$f":"G15","v":"16h13"}]
[null,null,null,null,null,null,null,null,null,null,{"$f":"H14","v":"Gagnant M1"},{"$f":"I14","v":0},{"$f":"J14","v":0},{"$f":"K14","v":"Gagnant M3"},null,null,null,null,null,null,null,null,null,null,null,null,null,null,{"$f":"H15","v":"Gagnant M2"},{"$f":"I15","v":0},{"$f":"J15","v":0},{"$f":"K15","v":"Gagnant M4"}]
[null,null,null,null,null,null,null,null,null,null,null,null,null,null,null,null,null,null,null,"FINALE"]
[null,null,null,null,null,null,null,null,null,null,null,null,null,null,null,null,null,null,null,"M16"]
[null,null,null,null,null,null,null,null,null,null,null,null,null,null,null,null,null,null,null,{"$f":"G21","v":"17h33"}]
[null,null,null,null,null,null,null,null,null,null,null,null,null,null,null,null,null,null,null,{"$f":"H21","v":"Gagnant M9"},{"$f":"I21","v":0},{"$f":"J21","v":0},{"$f":"K21","v":"Gagnant M10"}]
[]
[]
[]
[null,null,null,null,null,null,null,null,null,null,null,null,null,"DEMI 1 ESPOIR",null,null,null,null,null,null,null,null,null,null,null,"DEMI 2 ESPOIR"]
[null,null,null,null,null,null,null,null,null,null,null,null,null,"M5",null,null,null,null,null,null,null,null,null,null,null,"M6"]
[null,null,null,null,null,null,null,null,null,null,null,null,null,{"$f":"G10","v":"14h48"},null,null,null,null,null,null,null,null,null,null,null,{"$f":"G11","v":"15h05"}]
[null,null,null,null,null,null,null,null,null,null,null,null,null,{"$f":"H10","v":"-"},{"$f":"I10","v":0},{"$f":"J10","v":0},{"$f":"K10","v":"-"},null,null,null,null,null,null,null,null,{"$f":"H11","v":"-"},{"$f":"I11","v":0},{"$f":"J11","v":0},{"$f":"K11","v":"-"}]
[]
[null,null,null,null,null,null,null,"PALMARES ELITE",null,null,null,null,null,null,null,null,null,null,null,"PETITE Finale ESPOIR",null,null,null,null,null,null,null,null,null,null,null,"PALMARES ESPOIR"]
[null,null,null,null,null,null,null,"1er",null,null,null,null,null,null,null,null,null,null,null,"M13",null,null,null,null,null,null,null,null,null,null,null,"1er"]
[null,null,null,null,null,null,null,"2ème",null,null,null,null,null,null,null,null,null,null,null,{"$f":"G18","v":"17h04"},null,null,null,null,null,null,null,null,null,null,null,"2ème"]
[null,null,null,null,null,null,null,"3ème",null,null,null,null,null,null,null,null,null,null,null,{"$f":"H18","v":"Perdant M5"},{"$f":"I18","v":0},{"$f":"J18","v":0},{"$f":"K18","v":"Perdant M6"},null,null,null,null,null,null,null,null,"3ème"]
[null,null,null,null,null,null,null,"4ème",null,null,null,null,null,null,null,null,null,null,null,null,null,null,null,null,null,null,null,null,null,null,null,"4ème"]
[null,null,null,null,null,null,null,"5ème",null,null,null,null,null,null,null,null,null,null,null,"FINALE ESPOIR"]
[null,null,null,null,null,null,null,"6ème",null,null,null,null,null,null,null,null,null,null,null,"M15"]
[null,null,null,null,null,null,null,"7ème",null,null,null,null,null,null,null,null,null,null,null,{"$f":"G20","v":"17h16"}]
[null,null,null,null,null,null,null,"8ème",null,null,null,null,null,null,null,null,null,null,null,{"$f":"H20","v":"Gagnant M5"},{"$f":"I20","v":0},{"$f":"J20","v":0},{"$f":"K20","v":"Gagnant M6"}]
[null,null,null,null,null,null,null,"En cas d'égalité sur ces matchs, séance de jet de 7 m (3 jets par équipes, puis but en or)"]
[]
[]
[]
[]
[]
[]
[]
[]
[]
[]
[]
[]
[]
[]
[null,null,null,null,"Quart de finale 1","M1",1]
[null,null,null,null,"Quart de finale 3","M2",2]
[null,null,null,null,"Quart de finale 2","M3",3]
[null,null,null,null,"Quart de finale 4","M4",4]
[null,null,null,null,"Demi-Finale 1 Esp","M13",5]
[null,null,null,null,"Demi-Finale 2 Esp","M14",6]
[null,null,null,null,"Petite Demi Elite 1 ","M5",7]
[null,null,null,null,"Petite Demi Elite 2","M6",8]
[null,null,null,null,"Demi Elite 1","M9",9]
[null,null,null,null,"Demi Elite 2","M10",10]
[null,null,null,null,"Classement 7-8","M7",11]
[null,null,null,null,"Classement 5-6","M8",12]
[null,null,null,null,"Petite Finale Espoir","M15",13]
[null,null,null,null,"Petite finale Elite","M11",14]
[null,null,null,null,"Finale Espoir","M16",15]
[null,null,null,null,"Finale Elite","M12",16]

{"sheet":"Finales M13","index":5,"n_rows":69,"n_cols":39,"rows_kept":69,"cut":false,"hidden":false,"merged":[]}
[null,null,null,null,null,null,null,null,null,null,null,null,null,null,null,null,null,null,null,null,null,null,null,null,null,null,null,{"$f":"LEFT(CELL(\"filename\",Score!K4),FIND(\"[\",CELL(\"filename\",Score!K4))-2)&\"\\\"&\"partie_2_m13.html\"","v":"C:\\Users\\fseys\\Dropbox (Compte personnel)\\! ! ! Tournoi Noël 2019\\! Tournoi\\partie_2_m13.html"}]
[null,null,null,null,"RESULTATS ET CLASSEMENTS PHASES FINALES",null,null,null,null,null,null,null,null,null,null,null,null,null,null,null,null,null,null,null,null,null,null,"Date de derni&egrave;re modification : 02/12/2019 14:36:14"]
[null,null,null,null,{"$f":"Score!R1","v":"MOINS DE 13 MASCULINS"}]
[]
[null,null,null,null,null,"FINALES","H","Sc-R","Pt-R","Pt-V","Sc-V","Arbitrage",null,null,"Sanctions"]
[null,null,null,null,"Quart de finale 1","M1",{"$f":"HOUR(AM6)&\"h\"&TEXT(MINUTE(AM6),\"00\")","v":"13h40"},{"$f":"IF(ISBLANK(Score!M24),\"-\",Finaliste_M13_1)","v":"-"},null,null,{"$f":"IF(ISBLANK(Score!M24),\"-\",Finaliste_M13_8)","v":"-"},null,null,null,null,null,null,null,null,null,null,"1er",{"$f":"IF(ISBLANK(I21),\"-\",IF(I21>J21,H21,K21))","v":"-"},null,"1er",{"$f":"IF(ISBLANK(I20),\"-\",IF(I20>J20,H20,K20))","v":"-"},null,null,null,null,null,null,null,null,null,null,null,null,{"$f":"Fin_matin+Durée2","v":"13:40:00"}]
[null,null,null,null,"Quart de finale 3","M2","13h57",{"$f":"IF(ISBLANK(Score!M24),\"-\",Finaliste_M13_3)","v":"-"},null,null,{"$f":"IF(ISBLANK(Score!M24),\"-\",Finaliste_M13_6)","v":"-"},null,null,null,null,null,null,null,null,null,null,"2eme",{"$f":"IF(ISBLANK(I21),\"-\",IF(I21<J21,H21,K21))","v":"-"},null,"2eme",{"$f":"IF(ISBLANK(I20),\"-\",IF(I20<J20,H20,K20))","v":"-"},null,null,null,null,null,null,null,null,null,null,null,null,{"$f":"AM6+MeP+Durée","v":"13:57:00"}]
[null,null,null,null,"Quart de finale 2","M3","14h14",{"$f":"IF(ISBLANK(Score!M24),\"-\",Finaliste_M13_4)","v":"-"},null,null,{"$f":"IF(ISBLANK(Score!M24),\"-\",Finaliste_M13_5)","v":"-"},null,null,null,null,null,null,null,null,null,null,"3eme",{"$f":"IF(ISBLANK(I19),\"-\",IF(I19>J19,H19,K19))","v":"-"},null,"3eme",{"$f":"IF(ISBLANK(I18),\"-\",IF(I18>J18,H18,K18))","v":"-"},null,null,null,null,null,null,null,null,null,null,null,null,"14:14:00"]
[null,null,null,null,"Quart de finale 4","M4","14h31",{"$f":"IF(ISBLANK(Score!M24),\"-\",Finaliste_M13_2)","v":"-"},null,null,{"$f":"IF(ISBLANK(Score!M24),\"-\",Finaliste_M13_7)","v":"-"},null,null,null,null,null,null,null,null,null,null,"4eme",{"$f":"IF(ISBLANK(I19),\"-\",IF(I19<J19,H19,K19))","v":"-"},null,"4eme",{"$f":"IF(ISBLANK(I18),\"-\",IF(I18<J18,H18,K18))","v":"-"},null,null,null,null,null,null,null,null,null,null,null,null,"14:31:00"]
[null,null,null,null,"Demi-Finale 1 Esp","M5","14h48",{"$f":"IF(ISBLANK(Score!M24),\"-\",_3eme_3eme_M13)","v":"-"},null,null,{"$f":"IF(ISBLANK(Score!M24),\"-\",_4eme_poule_B_M13)","v":"-"},null,null,null,null,null,null,null,null,null,null,"5eme",{"$f":"IF(ISBLANK(I17),\"-\",IF(I17>J17,H17,K17))","v":"-"},null,null,null,null,null,null,null,null,null,null,null,null,null,null,null,"14:48:00"]
[null,null,null,null,"Demi-Finale 2 Esp","M6","15h05",{"$f":"IF(ISBLANK(Score!M24),\"-\",_4eme_poule_C_M13)","v":"-"},null,null,{"$f":"IF(ISBLANK(Score!M24),\"-\",_4eme_poule_A_M13)","v":"-"},null,null,null,null,null,null,null,null,null,null,"6eme",{"$f":"IF(ISBLANK(I17),\"-\",IF(I17<J17,H17,K17))","v":"-"},null,null,null,null,null,null,null,null,null,null,null,null,null,null,null,"15:05:00"]
[null,null,null,null,"Petite Demi Elite 1 ","M7","15h22",{"$f":"IF(ISBLANK(I6),\"Perdant M1\",IF(I6>J6,K6,H6))","v":"Perdant M1"},null,null,{"$f":"IF(ISBLANK(I8),\"Perdant M3\",IF(I8>J8,K8,H8))","v":"Perdant M3"},null,null,null,null,null,null,null,null,null,null,"7eme",{"$f":"IF(ISBLANK(I16),\"-\",IF(I16>J16,H16,K16))","v":"-"},null,null,null,null,null,null,null,null,null,null,null,null,null,null,null,"15:22:00"]
[null,null,null,null,"Petite Demi Elite 2","M8","15h39",{"$f":"IF(ISBLANK(I7),\"Perdant M2\",IF(I7>J7,K7,H7))","v":"Perdant M2"},null,null,{"$f":"IF(ISBLANK(I9),\"Perdant M4\",IF(I9>J9,K9,H9))","v":"Perdant M4"},null,null,null,null,null,null,null,null,null,null,"8eme",{"$f":"IF(ISBLANK(I16),\"-\",IF(I16<J16,H16,K16))","v":"-"},null,null,null,null,null,null,null,null,null,null,null,null,null,null,null,"15:39:00"]
[null,null,null,null,"Demi Elite 1","M9","15h56",{"$f":"IF(ISBLANK(I6),\"Gagnant M1\",IF(I6>J6,H6,K6))","v":"Gagnant M1"},null,null,{"$f":"IF(ISBLANK(I8),\"Gagnant M3\",IF(I8<J8,K8,H8))","v":"Gagnant M3"},null,null,null,null,null,null,null,null,null,null,null,null,null,null,null,null,null,null,null,null,null,null,null,null,null,null,null,"15:56:00"]
[null,null,null,null,"Demi Elite 2","M10","16h13",{"$f":"IF(ISBLANK(I7),\"Gagnant M2\",IF(I7>J7,H7,K7))","v":"Gagnant M2"},null,null,{"$f":"IF(ISBLANK(I9),\"Gagnant M4\",IF(I9<J9,K9,H9))","v":"Gagnant M4"},null,null,null,null,null,null,null,null,null,"SI EGALITE A L A FIN D'UN MATCH => SCEANCE DE JET DE 7M",null,null,null,null,null,null,null,null,null,null,null,null,null,null,null,null,null,"16:13:00"]
[null,null,null,null,"Classement 7-8","M11","16h30",{"$f":"IF(ISBLANK(I12),\"Perdant M7\",IF(I12>J12,K12,H12))","v":"Perdant M7"},null,null,{"$f":"IF(ISBLANK(I13),\"Perdant M8\",IF(I13>J13,K13,H13))","v":"Perdant M8"},null,null,null,null,null,null,null,null,null,"(3 jets par équipe puis mort subite)",null,null,null,null,null,null,null,null,null,null,null,null,null,null,null,null,null,"16:30:00"]
[null,null,null,null,"Classement 5-6","M12","16h47",{"$f":"IF(ISBLANK(I12),\"Gagnant M7\",IF(I12>J12,H12,K12))","v":"Gagnant M7"},null,null,{"$f":"IF(ISBLANK(I13),\"Gagnant M8\",IF(I13<J13,K13,H13))","v":"Gagnant M8"},null,null,null,null,null,null,null,null,null,null,null,null,null,null,null,null,null,null,null,null,null,null,null,null,null,null,null,"16:47:00"]
[null,null,null,null,"Petite Finale Espoir","M13","17h04",{"$f":"IF(ISBLANK(I10),\"Perdant M5\",IF(I10>J10,K10,H10))","v":"Perdant M5"},null,null,{"$f":"IF(ISBLANK(I11),\"Perdant M6\",IF(I11>J11,K11,H11))","v":"Perdant M6"},null,null,null,null,null,null,null,null,null,null,null,null,null,null,null,null,null,null,null,null,null,null,null,null,null,null,null,"17:04:00"]
[null,null,null,null,"Petite finale Elite","M14","16h59",{"$f":"IF(ISBLANK(I14),\"Perdant M9\",IF(I14<J14,H14,K14))","v":"Perdant M9"},null,null,{"$f":"IF(ISBLANK(I15),\"Perdant M10\",IF(I15<J15,H15,K15))","v":"Perdant M10"},null,null,null,null,null,null,null,null,null,null,null,null,null,null,null,null,null,null,null,null,null,null,null,null,null,null,null,"16:59:00"]
[null,null,null,null,"Finale Espoir","M15","17h16",{"$f":"IF(ISBLANK(I10),\"Gagnant M5\",IF(I10<J10,K10,H10))","v":"Gagnant M5"},null,null,{"$f":"IF(ISBLANK(I11),\"Gagnant M6\",IF(I11<J11,K11,H11))","v":"Gagnant M6"},null,null,null,null,null,null,null,null,null,null,null,null,null,null,null,null,null,null,null,null,null,null,null,null,null,null,null,"17:16:00"]
[null,null,null,null,"Finale Elite","M16","17h33",{"$f":"IF(ISBLANK(I14),\"Gagnant M9\",IF(I14>J14,H14,K14))","v":"Gagnant M9"},null,null,{"$f":"IF(ISBLANK(I15),\"Gagnant M10\",IF(I15<J15,K15,H15))","v":"Gagnant M10"},null,null,null,null,null,null,null,null,null,null,null,null,null,null,null,null,null,null,null,null,null,null,null,null,null,null,null,"17:33:00"]
[null,null,null,null,null,null,null,"TOURNOI HANDBALL JEUNES\nSTRASBOURG NOËL 2019",null,null,null,null,null,null,null,null,"FINALES",null,null,null,null,null,null,null,null,"MOINS DE 13 ANS, GARÇONS\nDIMANCHE 22 DECEMBRE 2019"]
[null,null,null,null,null,null,null,null,null,null,"RESULTATS ET CLASSEMENTS PHASES FINALES"]
[null,null,null,null,null,null,null,"QUART",null,null,null,null,null,"QUART",null,null,null,null,null,null,null,null,null,null,null,"QUART",null,null,null,null,null,"QUART"]
[null,null,null,null,null,null,null,"M1",null,null,null,null,null,"M3",null,null,null,null,null,null,null,null,null,null,null,"M2",null,null,null,null,null,"M4"]
[null,null,null,null,null,null,null,{"$f":"G6","v":"13h40"},null,null,null,null,null,{"$f":"G8","v":"14h14"},null,null,null,null,null,null,null,null,null,null,null,{"$f":"G7","v":"13h57"},null,null,null,null,null,{"$f":"G9","v":"14h31"}]
[null,null,null,null,null,null,null,{"$f":"H6","v":"-"},{"$f":"I6","v":0},{"$f":"J6","v":0},{"$f":"K6","v":"-"},null,null,{"$f":"H8","v":"-"},{"$f":"I8","v":0},{"$f":"J8","v":0},{"$f":"K8","v":"-"},null,null,null,null,null,null,null,null,{"$f":"H7","v":"-"},{"$f":"I7","v":0},{"$f":"J7","v":0},{"$f":"K7","v":"-"},null,null,{"$f":"H9","v":"-"},{"$f":"I9","v":0},{"$f":"J9","v":0},{"$f":"K9","v":"-"}]
[]
[null,null,null,null,null,null,null,null,null,null,"PETITE DEMIE",null,null,null,null,null,null,null,null,null,null,null,null,null,null,null,null,null,"PETITE DEMIE"]
[null,null,null,null,null,null,null,null,null,null,"M7",null,null,null,null,null,null,null,null,null,null,null,null,null,null,null,null,null,"M8"]
[null,null,null,null,null,null,null,null,null,null,{"$f":"G12","v":"15h22"},null,null,null,null,null,null,null,null,null,null,null,null,null,null,null,null,null,{"$f":"G13","v":"15h39"}]
[null,null,null,null,null,null,null,null,null,null,{"$f":"H12","v":"Perdant M1"},{"$f":"I12","v":0},{"$f":"J12","v":0},{"$f":"K12","v":"Perdant M3"},null,null,"CLASSEMENT 1",null,null,null,null,null,null,null,null,null,null,null,{"$f":"H13","v":"Perdant M2"},{"$f":"I13","v":0},{"$f":"J13","v":0},{"$f":"K13","v":"Perdant M4"}]
[null,null,null,null,null,null,null,null,null,null,null,null,null,null,null,null,"M11"]
[null,null,null,null,null,null,null,null,null,null,null,null,null,null,null,null,{"$f":"G16","v":"16h30"}]
[null,null,null,null,null,null,null,null,null,null,null,null,null,null,null,null,{"$f":"H16","v":"Perdant M7"},{"$f":"I16","v":0},{"$f":"J16","v":0},{"$f":"K16","v":"Perdant M8"}]
[null,null,null,null,null,null,null,null,null,null,null,null,null,null,null,null,null,null,null,null,null,null,"CLASSEMENT 2"]
[null,null,null,null,null,null,null,null,null,null,null,null,null,null,null,null,null,null,null,null,null,null,"M12"]
[null,null,null,null,null,null,null,null,null,null,null,null,null,null,null,null,null,null,null,null,null,null,{"$f":"G17","v":"16h47"}]
[null,null,null,null,null,null,null,null,null,null,null,null,null,null,null,null,null,null,null,null,null,null,{"$f":"H17","v":"Gagnant M7"},{"$f":"I17","v":0},{"$f":"J17","v":0},{"$f":"K17","v":"Gagnant M8"}]
[]
[null,null,null,null,null,null,null,null,null,null,null,null,null,null,null,null,null,null,null,"PETITE FINALE"]
[null,null,null,null,null,null,null,null,null,null,null,null,null,null,null,null,null,null,null,"M14"]
[null,null,null,null,null,null,null,null,null,null,null,null,null,null,null,null,null,null,null,{"$f":"G19","v":"16h59"}]
[null,null,null,null,null,null,null,null,null,null,"DEMIE",null,null,null,null,null,null,null,null,{"$f":"H19","v":"Perdant M9"},{"$f":"I19","v":0},{"$f":"J19","v":0},{"$f":"K19","v":"Perdant M10"},null,null,null,null,null,"DEMIE"]
[null,null,null,null,null,null,null,null,null,null,"M9",null,null,null,null,null,null,null,null,null,null,null,null,null,null,null,null,null,"M10"]
[null,null,null,null,null,null,null,null,null,null,{"$f":"G14","v":"15h56"},null,null,null,null,null,null,null,null,null,null,null,null,null,null,null,null,null,{"$f":"G15","v":"16h13"}]
[null,null,null,null,null,null,null,null,null,null,{"$f":"H14","v":"Gagnant M1"},{"$f":"I14","v":0},{"$f":"J14","v":0},{"$f":"K14","v":"Gagnant M3"},null,null,null,null,null,null,null,null,null,null,null,null,null,null,{"$f":"H15","v":"Gagnant M2"},{"$f":"I15","v":0},{"$f":"J15","v":0},{"$f":"K15","v":"Gagnant M4"}]
[null,null,null,null,null,null,null,null,null,null,null,null,null,null,null,null,null,null,null,"FINALE"]
[null,null,null,null,null,null,null,null,null,null,null,null,null,null,null,null,null,null,null,"M16"]
[null,null,null,null,null,null,null,null,null,null,null,null,null,null,null,null,null,null,null,{"$f":"G21","v":"17h33"}]
[null,null,null,null,null,null,null,null,null,null,null,null,null,null,null,null,null,null,null,{"$f":"H21","v":"Gagnant M9"},{"$f":"I21","v":0},{"$f":"J21","v":0},{"$f":"K21","v":"Gagnant M10"}]
[]
[]
[]
[null,null,null,null,null,null,null,null,null,null,null,null,null,"DEMI 1 ESPOIR",null,null,null,null,null,null,null,null,null,null,null,"DEMI 2 ESPOIR"]
[null,null,null,null,null,null,null,null,null,null,null,null,null,"M5",null,null,null,null,null,null,null,null,null,null,null,"M6"]
[null,null,null,null,null,null,null,null,null,null,null,null,null,{"$f":"G10","v":"14h48"},null,null,null,null,null,null,null,null,null,null,null,{"$f":"G11","v":"15h05"}]
[null,null,null,null,null,null,null,null,null,null,null,null,null,{"$f":"H10","v":"-"},{"$f":"I10","v":0},{"$f":"J10","v":0},{"$f":"K10","v":"-"},null,null,null,null,null,null,null,null,{"$f":"H11","v":"-"},{"$f":"I11","v":0},{"$f":"J11","v":0},{"$f":"K11","v":"-"}]
[]
[null,null,null,null,null,null,null,"PALMARES ELITE",null,null,null,null,null,null,null,null,null,null,null,"PETITE Finale ESPOIR",null,null,null,null,null,null,null,null,null,null,null,"PALMARES ESPOIR"]
[null,null,null,null,null,null,null,"1er",null,null,null,null,null,null,null,null,null,null,null,"M13",null,null,null,null,null,null,null,null,null,null,null,"1er"]
[null,null,null,null,null,null,null,"2ème",null,null,null,null,null,null,null,null,null,null,null,{"$f":"G18","v":"17h04"},null,null,null,null,null,null,null,null,null,null,null,"2ème"]
[null,null,null,null,null,null,null,"3ème",null,null,null,null,null,null,null,null,null,null,null,{"$f":"H18","v":"Perdant M5"},{"$f":"I18","v":0},{"$f":"J18","v":0},{"$f":"K18","v":"Perdant M6"},null,null,null,null,null,null,null,null,"3ème"]
[null,null,null,null,null,null,null,"4ème",null,null,null,null,null,null,null,null,null,null,null,null,null,null,null,null,null,null,null,null,null,null,null,"4ème"]
[null,null,null,null,null,null,null,"5ème",null,null,null,null,null,null,null,null,null,null,null,"FINALE ESPOIR"]
[null,null,null,null,null,null,null,"6ème",null,null,null,null,null,null,null,null,null,null,null,"M15"]
[null,null,null,null,null,null,null,"7ème",null,null,null,null,null,null,null,null,null,null,null,{"$f":"G20","v":"17h16"}]
[null,null,null,null,null,null,null,"8ème",null,null,null,null,null,null,null,null,null,null,null,{"$f":"H20","v":"Gagnant M5"},{"$f":"I20","v":0},{"$f":"J20","v":0},{"$f":"K20","v":"Gagnant M6"}]
[null,null,null,null,null,null,null,"En cas d'égalité sur ces matchs, séance de jet de 7 m (3 jets par équipes, puis but en or)"]

{"sheet":"1ère Phase M11","index":6,"n_rows":39,"n_cols":18,"rows_kept":39,"cut":false,"hidden":false,"merged":[[2,0,2,3],[37,3,37,5],[32,9,37,15],[11,3,11,6],[33,3,33,5],[34,3,34,5],[35,3,35,5],[36,3,36,5],[6,3,6,6],[7,3,7,6],[8,3,8,6],[9,3,9,6],[10,3,10,6]]}
[]
[]
["TOURNOI INTERNATIONAL NOEL\nSTRASBOURG, 2019",null,null,null,null,null,null,null,null,null,"MOINS DE 11 ANS, MIXTES\nDIMANCHE 22 DECEMBRE 2019"]
[]
[null,"POULES ET CLASSEMENTS PHASES PRELIMINAIRES"]
[]
[null,"GYMNASE DES 2 RIVES",null,"JEAN-NICOLAS MULLER"]
[null,"POULE A","POULE B","POULE C",null,null,null,null,null,null,"Suivi de la compétition en direct"]
[null,{"$f":"equi_11G_PA_1","v":"STRASBOURG SUD A"},{"$f":"equi_11G_PB_1","v":"STRASBOURG SUD B"},{"$f":"equi_11G_PC_1","v":"ESSAHB - M11"},null,null,null,null,null,null,"Réultats et classement mis à jours"]
[null,{"$f":"equi_11G_PA_2","v":"SELESTAT AHB B"},{"$f":"equi_11G_PB_2","v":"SELESTAT AHB A"},{"$f":"equi_11G_PC_2","v":"HC ECKBOLSHEIM - M11"},null,null,null,null,null,"www.sshb.fr/TIN2019/2019m11G.html"]
[null,{"$f":"equi_11G_PA_3","v":"CVJM WALDDORFHÄSLACH"},{"$f":"equi_11G_PB_3","v":"ESBM GBDH"},{"$f":"equi_11G_PC_3","v":"ATH - M11"}]
[null,{"$f":"equi_11G_PA_4","v":"SARREBOURG MSH"},{"$f":"equi_11G_PB_4","v":"ASPTT"},{"$f":"equi_11G_PC_4","v":"HSG HANAUERLAND"},null,null,null,null,null,null,"Qrcode généré par Unitag.io"]
[]
[null,"GYMNASE DES 2 RIVES - 43 rue du Rhin - 67100 Stras",null,null,null,null,null,{"$f":"Score!H9","v":0},{"$f":"Score!I9","v":0},null,"JEAN-NICOLAS MULLER - 36 rue du Languedoc - 67 Strasbourg",null,null,null,null,null,{"$f":"Score!Q9","v":0},{"$f":"Score!R9","v":0}]
[null,{"$f":"Score!B10","v":0},null,null,null,null,null,{"$f":"Score!H10","v":0},{"$f":"Score!I10","v":0},null,{"$f":"Score!K10","v":0},{"$f":"Score!L10","v":0},{"$f":"Score!M10","v":0},{"$f":"Score!N10","v":0},{"$f":"Score!O10","v":0},{"$f":"Score!P10","v":0},{"$f":"Score!Q10","v":0},{"$f":"Score!R10","v":0}]
[null,{"$f":"Score!B11","v":"Recevants"},{"$f":"Score!C11","v":"Visiteurs"},{"$f":"Score!D11","v":"Sc-R"},{"$f":"Score!E11","v":"Sc-V"},{"$f":"Score!F11","v":"Pt-R"},{"$f":"Score!G11","v":"Pt-V"},{"$f":"Score!H11","v":"Arbitrage"},{"$f":"Score!I11","v":"Sanctions"},null,{"$f":"Score!K11","v":"Recevants"},{"$f":"Score!L11","v":"Visiteurs"},{"$f":"Score!M11","v":"Sc-R"},{"$f":"Score!N11","v":"Sc-V"},{"$f":"Score!O11","v":"Pt-R"},{"$f":"Score!P11","v":"Pt-V"},{"$f":"Score!Q11","v":"Arbitrage"},{"$f":"Score!R11","v":"Sanctions"}]
[{"$f":"Score!A12","v":"Poules"},{"$f":"Score!B12","v":0},{"$f":"Score!C12","v":0},{"$f":"Score!D12","v":0},{"$f":"Score!E12","v":0},{"$f":"Score!F12","v":0},{"$f":"Score!G12","v":0},{"$f":"Score!H12","v":0},{"$f":"Score!I12","v":0},null,{"$f":"Score!K12","v":0},{"$f":"Score!L12","v":0},{"$f":"Score!M12","v":0},{"$f":"Score!N12","v":0},{"$f":"Score!O12","v":0},{"$f":"Score!P12","v":0},{"$f":"Score!Q12","v":0},{"$f":"Score!R12","v":0}]
[{"$f":"Score!A13","v":"9h00"},{"$f":"Score!B13","v":"STRASBOURG SUD A"},{"$f":"Score!C13","v":"SARREBOURG MSH"},null,null,null,null,null,null,null,{"$f":"Score!K13","v":"ESSAHB - M11"},{"$f":"Score!L13","v":"HSG HANAUERLAND"},null,null,null,null,{"$f":"Score!Q13","v":0},{"$f":"Score!R13","v":0}]
[{"$f":"Score!A14","v":"9h22"},{"$f":"Score!B14","v":"STRASBOURG SUD B"},{"$f":"Score!C14","v":"ASPTT"},null,null,null,null,null,null,null,"Match Moins de 13 G",null,null,null,null,null,{"$f":"Score!Q14","v":"+5' min d'échauff"},{"$f":"Score!R14","v":0}]
[{"$f":"Score!A15","v":"9h44"},{"$f":"Score!B15","v":"SELESTAT AHB B"},{"$f":"Score!C15","v":"CVJM WALDDORFHÄSLACH"},null,null,null,null,null,null,null,{"$f":"Score!K15","v":"HC ECKBOLSHEIM - M11"},{"$f":"Score!L15","v":"ATH - M11"},null,null,null,null,{"$f":"Score!Q15","v":"+5' min d'échauff"},{"$f":"Score!R15","v":0}]
[{"$f":"Score!A16","v":"10h06"},{"$f":"Score!B16","v":"SELESTAT AHB A"},{"$f":"Score!C16","v":"ESBM GBDH"},null,null,null,null,null,null,null,"Match Moins de 13 G",null,null,null,null,null,{"$f":"Score!Q16","v":"+5' min d'échauff"},{"$f":"Score!R16","v":0}]
[{"$f":"Score!A17","v":"10h23"},{"$f":"Score!B17","v":"CVJM WALDDORFHÄSLACH"},{"$f":"Score!C17","v":"STRASBOURG SUD A"},null,null,null,null,null,null,null,{"$f":"Score!K17","v":"ATH - M11"},{"$f":"Score!L17","v":"ESSAHB - M11"},null,null,null,null,{"$f":"Score!Q17","v":0},{"$f":"Score!R17","v":0}]
[{"$f":"Score!A18","v":"10h40"},{"$f":"Score!B18","v":"ESBM GBDH"},{"$f":"Score!C18","v":"STRASBOURG SUD B"},null,null,null,null,null,null,null,"Match Moins de 13 G",null,null,null,null,null,{"$f":"Score!Q18","v":0},{"$f":"Score!R18","v":0}]
[{"$f":"Score!A19","v":"10h57"},{"$f":"Score!B19","v":"SELESTAT AHB B"},{"$f":"Score!C19","v":"SARREBOURG MSH"},null,null,null,null,null,null,null,{"$f":"Score!K19","v":"HC ECKBOLSHEIM - M11"},{"$f":"Score!L19","v":"HSG HANAUERLAND"},null,null,null,null,{"$f":"Score!Q19","v":0},{"$f":"Score!R19","v":0}]
[{"$f":"Score!A20","v":"11h14"},{"$f":"Score!B20","v":"SELESTAT AHB A"},{"$f":"Score!C20","v":"ASPTT"},null,null,null,null,null,null,null,"Match Moins de 13 G",null,null,null,null,null,{"$f":"Score!Q20","v":0},{"$f":"Score!R20","v":0}]
[{"$f":"Score!A21","v":"11h31"},{"$f":"Score!B21","v":"STRASBOURG SUD A"},{"$f":"Score!C21","v":"SELESTAT AHB B"},null,null,null,null,null,null,null,{"$f":"Score!K21","v":"ESSAHB - M11"},{"$f":"Score!L21","v":"HC ECKBOLSHEIM - M11"},null,null,null,null,{"$f":"Score!Q21","v":0},{"$f":"Score!R21","v":0}]
[{"$f":"Score!A22","v":"11h48"},{"$f":"Score!B22","v":"STRASBOURG SUD B"},{"$f":"Score!C22","v":"SELESTAT AHB A"},null,null,null,null,null,null,null,"Match Moins de 13 G",null,null,null,null,null,{"$f":"Score!Q22","v":0},{"$f":"Score!R22","v":0}]
[{"$f":"Score!A23","v":"12h05"},{"$f":"Score!B23","v":"SARREBOURG MSH"},{"$f":"Score!C23","v":"CVJM WALDDORFHÄSLACH"},null,null,null,null,null,null,null,{"$f":"Score!K23","v":"HSG HANAUERLAND"},{"$f":"Score!L23","v":"ATH - M11"},null,null,null,null,{"$f":"Score!Q23","v":0},{"$f":"Score!R23","v":0}]
[{"$f":"Score!A24","v":"12h20"},{"$f":"Score!B24","v":"ASPTT"},{"$f":"Score!C24","v":"ESBM GBDH"},null,null,null,null,null,null,null,"Match Moins de 13 G",null,null,null,null,null,{"$f":"Score!Q24","v":0},{"$f":"Score!R24","v":0}]
[null,"Pause repas",null,null,null,null,null,null,null,null,"Déplacement au Gymnase des 2 rives et pause repas (15min)"]
[]
[null,"CLASSEMENTS PHASE PRELIMINAIRE"]
[null,"Classements",null,null,null,null,null,null,null,"Déroulement du tournoi :\n- 1ère phase : 3 poules de 4 équipes jouent un championnat, toutes les équipes se rencontrent.\n- 2ème phase : les 2 premiers de chaque poule, plus les 2 meilleurs troisièmes sont reversés en Finales ELITE\nLes autres équipes sont reversées en Finales ESPOIR"]
[null,"Poule A","Poule B","Poule C"]
[1]
[2]
[3]
[4]
["En cas d'égalité, goal avérage particulier, puis séance de jets de 7m (3 jets par équipe, puis but en or)"]

{"sheet":"1ère Phase M13","index":7,"n_rows":39,"n_cols":18,"rows_kept":39,"cut":false,"hidden":false,"merged":[[2,0,2,3],[11,3,11,6],[32,9,37,15],[33,3,33,5],[34,3,34,5],[35,3,35,5],[36,3,36,5],[37,3,37,5],[6,2,6,6],[7,3,7,6],[8,3,8,6],[9,3,9,6],[10,3,10,6]]}
[]
[]
["TOURNOI INTERNATIONAL NOEL\nSTRASBOURG, 2019",null,null,null,null,null,null,null,null,null,"MOINS DE 13 ANS, MASCULINS\nDIMANCHE 22 DECEMBRE 2019"]
[]
[null,"POULES ET CLASSEMENTS PHASES PRELIMINAIRES"]
[]
[null,{"$f":"Score!K9","v":"JEAN-NICOLAS MULLER"},{"$f":"Score!T9","v":"GYMNASE REUSS"}]
[null,"POULE A","POULE B","POULE C",null,null,null,null,null,null,"Suivi de la compétition en direct"]
[null,{"$f":"equi_13G_PA_1","v":"TUS ALTENHEIM"},{"$f":"equi_13G_PB_1","v":"STRASBOURG SUD HB"},{"$f":"equi_13G_PC_1","v":"ASH - HAGUENAU"},null,null,null,null,null,null,"Réultats et classement mis à jours"]
[null,{"$f":"equi_13G_PA_2","v":"ESSAHB - M13"},{"$f":"equi_13G_PB_2","v":"SR INGWILLER BOUXWILLER"},{"$f":"equi_13G_PC_2","v":"US SAINT VIT"},null,null,null,null,null,"www.sshb.fr/TIN2019/2019m13G.html"]
[null,{"$f":"equi_13G_PA_3","v":"HC ECKBOLSHEIM - M13"},{"$f":"equi_13G_PB_3","v":"TV MURI HANDBALL"},{"$f":"equi_13G_PC_3","v":"VAHB - VERDUN"}]
[null,{"$f":"equi_13G_PA_4","v":"ATH - M13"},{"$f":"equi_13G_PB_4","v":"SR INGWILLER BOUXWILLER"},{"$f":"equi_13G_PC_4","v":"CVJM WALDDORFHÄSLACH"},null,null,null,null,null,null,"Qrcode généré par Unitag.io"]
[]
[null,"JEAN-NICOLAS MULLER - 36 rue du Languedoc - 67 Strasbourg",null,null,null,null,null,{"$f":"Score!H9","v":0},{"$f":"Score!I9","v":0},null,"GYMNASE REUSS - 62 Allée Reuss - 67100 Strasbourg",null,null,null,null,null,{"$f":"Score!Q9","v":0},{"$f":"Score!R9","v":0}]
[null,{"$f":"Score!B10","v":0},null,null,null,null,null,{"$f":"Score!H10","v":0},{"$f":"Score!I10","v":0},null,{"$f":"Score!K10","v":0},{"$f":"Score!L10","v":0},{"$f":"Score!M10","v":0},{"$f":"Score!N10","v":0},{"$f":"Score!O10","v":0},{"$f":"Score!P10","v":0},{"$f":"Score!Q10","v":0},{"$f":"Score!R10","v":0}]
[null,{"$f":"Score!B11","v":"Recevants"},{"$f":"Score!C11","v":"Visiteurs"},{"$f":"Score!D11","v":"Sc-R"},{"$f":"Score!E11","v":"Sc-V"},{"$f":"Score!F11","v":"Pt-R"},{"$f":"Score!G11","v":"Pt-V"},{"$f":"Score!H11","v":"Arbitrage"},{"$f":"Score!I11","v":"Sanctions"},null,{"$f":"Score!K11","v":"Recevants"},{"$f":"Score!L11","v":"Visiteurs"},{"$f":"Score!M11","v":"Sc-R"},{"$f":"Score!N11","v":"Sc-V"},{"$f":"Score!O11","v":"Pt-R"},{"$f":"Score!P11","v":"Pt-V"},{"$f":"Score!Q11","v":"Arbitrage"},{"$f":"Score!R11","v":"Sanctions"}]
[{"$f":"Score!A12","v":"Poules"},{"$f":"Score!B12","v":0},{"$f":"Score!C12","v":0},{"$f":"Score!D12","v":0},{"$f":"Score!E12","v":0},{"$f":"Score!F12","v":0},{"$f":"Score!G12","v":0},{"$f":"Score!H12","v":0},{"$f":"Score!I12","v":0},null,{"$f":"Score!K12","v":0},{"$f":"Score!L12","v":0},{"$f":"Score!M12","v":0},{"$f":"Score!N12","v":0},{"$f":"Score!O12","v":0},{"$f":"Score!P12","v":0},{"$f":"Score!Q12","v":0},{"$f":"Score!R12","v":0}]
[{"$f":"Score!A13","v":"9h00"},"MATCH MOINS DE 11",null,null,null,null,null,null,null,null,{"$f":"Score!T13","v":"STRASBOURG SUD HB"},{"$f":"Score!U13","v":"SR INGWILLER BOUXWILLER"},null,null,null,null,{"$f":"Score!Q13","v":0},{"$f":"Score!R13","v":0}]
[{"$f":"Score!A14","v":"9h22"},{"$f":"Score!K14","v":"TUS ALTENHEIM"},{"$f":"Score!L14","v":"ATH - M13"},null,null,null,null,null,null,null,{"$f":"Score!T14","v":"ASH - HAGUENAU"},{"$f":"Score!U14","v":"CVJM WALDDORFHÄSLACH"},null,null,null,null,{"$f":"Score!Q14","v":"+5' min d'échauff"},{"$f":"Score!R14","v":0}]
[{"$f":"Score!A15","v":"9h44"},"MATCH MOINS DE 11",null,null,null,null,null,null,null,null,{"$f":"Score!T15","v":"VILLIERS HANDBALL"},{"$f":"Score!U15","v":"TV MURI HANDBALL"},null,null,null,null,{"$f":"Score!Q15","v":"+5' min d'échauff"},{"$f":"Score!R15","v":0}]
[{"$f":"Score!A16","v":"10h06"},{"$f":"Score!K16","v":"ESSAHB - M13"},{"$f":"Score!L16","v":"HC ECKBOLSHEIM - M13"},null,null,null,null,null,null,null,{"$f":"Score!T16","v":"US SAINT VIT"},{"$f":"Score!U16","v":"VAHB - VERDUN"},null,null,null,null,{"$f":"Score!Q16","v":"+5' min d'échauff"},{"$f":"Score!R16","v":0}]
[{"$f":"Score!A17","v":"10h23"},"MATCH MOINS DE 11",null,null,null,null,null,null,null,null,{"$f":"Score!T17","v":"TV MURI HANDBALL"},{"$f":"Score!U17","v":"STRASBOURG SUD HB"},null,null,null,null,{"$f":"Score!Q17","v":0},{"$f":"Score!R17","v":0}]
[{"$f":"Score!A18","v":"10h40"},{"$f":"Score!K18","v":"HC ECKBOLSHEIM - M13"},{"$f":"Score!L18","v":"TUS ALTENHEIM"},null,null,null,null,null,null,null,{"$f":"Score!T18","v":"VAHB - VERDUN"},{"$f":"Score!U18","v":"ASH - HAGUENAU"},null,null,null,null,{"$f":"Score!Q18","v":0},{"$f":"Score!R18","v":0}]
[{"$f":"Score!A19","v":"10h57"},"MATCH MOINS DE 11",null,null,null,null,null,null,null,null,{"$f":"Score!T19","v":"SR INGWILLER BOUXWILLER"},{"$f":"Score!U19","v":"SR INGWILLER BOUXWILLER"},null,null,null,null,{"$f":"Score!Q19","v":0},{"$f":"Score!R19","v":0}]
[{"$f":"Score!A20","v":"11h14"},{"$f":"Score!K20","v":"ESSAHB - M13"},{"$f":"Score!L20","v":"ATH - M13"},null,null,null,null,null,null,null,{"$f":"Score!T20","v":"US SAINT VIT"},{"$f":"Score!U20","v":"CVJM WALDDORFHÄSLACH"},null,null,null,null,{"$f":"Score!Q20","v":0},{"$f":"Score!R20","v":0}]
[{"$f":"Score!A21","v":"11h31"},"MATCH MOINS DE 11",null,null,null,null,null,null,null,null,{"$f":"Score!T21","v":"STRASBOURG SUD HB"},{"$f":"Score!U21","v":"SR INGWILLER BOUXWILLER"},null,null,null,null,{"$f":"Score!Q21","v":0},{"$f":"Score!R21","v":0}]
[{"$f":"Score!A22","v":"11h48"},{"$f":"Score!K22","v":"TUS ALTENHEIM"},{"$f":"Score!L22","v":"ESSAHB - M13"},null,null,null,null,null,null,null,{"$f":"Score!T22","v":"ASH - HAGUENAU"},{"$f":"Score!U22","v":"US SAINT VIT"},null,null,null,null,{"$f":"Score!Q22","v":0},{"$f":"Score!R22","v":0}]
[{"$f":"Score!A23","v":"12h05"},"MATCH MOINS DE 11",null,null,null,null,null,null,null,null,{"$f":"Score!T23","v":"SR INGWILLER BOUXWILLER"},{"$f":"Score!U23","v":"TV MURI HANDBALL"},null,null,null,null,{"$f":"Score!Q23","v":0},{"$f":"Score!R23","v":0}]
[{"$f":"Score!A24","v":"12h20"},{"$f":"Score!K24","v":"ATH - M13"},{"$f":"Score!L24","v":"HC ECKBOLSHEIM - M13"},null,null,null,null,null,null,null,{"$f":"Score!T24","v":"CVJM WALDDORFHÄSLACH"},{"$f":"Score!U24","v":"VAHB - VERDUN"},null,null,null,null,{"$f":"Score!Q24","v":0},{"$f":"Score!R24","v":0}]
[null,"Déplacement à GYMNASE REUSS (5min) et pause repas",null,null,null,null,null,null,null,null,"Pause repas"]
[]
[null,"CLASSEMENTS PHASE PRELIMINAIRE"]
[null,"Classements",null,null,null,null,null,null,null,"Déroulement du tournoi :\n- 1ère phase : 3 poules de 4 équipes jouent un championnat, toutes les équipes se rencontrent.\n- 2ème phase : les 2 premiers de chaque poule, plus les 2 meilleurs troisièmes sont reversés en Finales ELITE\nLes autres équipes sont reversées en Finales ESPOIR"]
[null,"Poule A","Poule B","Poule C"]
[1]
[2]
[3]
[4]
["En cas d'égalité, goal avérage particulier, puis séance de jets de 7m (3 jets par équipe, puis but en or)"]

{"sheet":"1ère Phase M11 FDT","index":8,"n_rows":39,"n_cols":18,"rows_kept":39,"cut":false,"hidden":false,"merged":[[11,3,11,6],[32,9,37,15],[33,0,34,6],[2,0,2,3],[6,3,6,6],[7,3,7,6],[8,3,8,6],[9,3,9,6],[10,3,10,6]]}
[]
[]
["TOURNOI INTERNATIONAL NOEL\nSTRASBOURG, 2019",null,null,null,null,null,null,null,null,null,"MOINS DE 11 ANS, MIXTES\nDIMANCHE 22 DECEMBRE 2019"]
[]
[null,"POULES ET CLASSEMENTS PHASES PRELIMINAIRES"]
[]
[null,"GYMNASE DES 2 RIVES",null,"JEAN-NICOLAS MULLER"]
[null,"POULE A","POULE B","POULE C",null,null,null,null,null,null,"Suivi de la compétition en direct"]
[null,{"$f":"equi_11G_PA_1","v":"STRASBOURG SUD A"},{"$f":"equi_11G_PB_1","v":"STRASBOURG SUD B"},{"$f":"equi_11G_PC_1","v":"ESSAHB - M11"},null,null,null,null,null,null,"Réultats et classement mis à jours"]
[null,{"$f":"equi_11G_PA_2","v":"SELESTAT AHB B"},{"$f":"equi_11G_PB_2","v":"SELESTAT AHB A"},{"$f":"equi_11G_PC_2","v":"HC ECKBOLSHEIM - M11"},null,null,null,null,null,"www.sshb.fr/TIN2019/2019m11G.html"]
[null,{"$f":"equi_11G_PA_3","v":"CVJM WALDDORFHÄSLACH"},{"$f":"equi_11G_PB_3","v":"ESBM GBDH"},{"$f":"equi_11G_PC_3","v":"ATH - M11"}]
[null,{"$f":"equi_11G_PA_4","v":"SARREBOURG MSH"},{"$f":"equi_11G_PB_4","v":"ASPTT"},{"$f":"equi_11G_PC_4","v":"HSG HANAUERLAND"},null,null,null,null,null,null,"Qrcode généré par Unitag.io"]
[]
[null,"GYMNASE DES 2 RIVES - 43 rue du Rhin - 67100 Stras",null,null,null,null,null,{"$f":"Score!H9","v":0},{"$f":"Score!I9","v":0},null,"JEAN-NICOLAS MULLER - 36 rue du Languedoc - 67 Strasbourg",null,null,null,null,null,{"$f":"Score!Q9","v":0},{"$f":"Score!R9","v":0}]
[null,{"$f":"Score!B10","v":0},null,null,null,null,null,{"$f":"Score!H10","v":0},{"$f":"Score!I10","v":0},null,{"$f":"Score!K10","v":0},{"$f":"Score!L10","v":0},{"$f":"Score!M10","v":0},{"$f":"Score!N10","v":0},{"$f":"Score!O10","v":0},{"$f":"Score!P10","v":0},{"$f":"Score!Q10","v":0},{"$f":"Score!R10","v":0}]
[null,{"$f":"Score!B11","v":"Recevants"},{"$f":"Score!C11","v":"Visiteurs"},{"$f":"Score!D11","v":"Sc-R"},{"$f":"Score!E11","v":"Sc-V"},{"$f":"Score!F11","v":"Pt-R"},{"$f":"Score!G11","v":"Pt-V"},{"$f":"Score!H11","v":"Arbitrage"},{"$f":"Score!I11","v":"Sanctions"},null,{"$f":"Score!K11","v":"Recevants"},{"$f":"Score!L11","v":"Visiteurs"},{"$f":"Score!M11","v":"Sc-R"},{"$f":"Score!N11","v":"Sc-V"},{"$f":"Score!O11","v":"Pt-R"},{"$f":"Score!P11","v":"Pt-V"},{"$f":"Score!Q11","v":"Arbitrage"},{"$f":"Score!R11","v":"Sanctions"}]
[{"$f":"Score!A12","v":"Poules"},{"$f":"Score!B12","v":0},{"$f":"Score!C12","v":0},{"$f":"Score!D12","v":0},{"$f":"Score!E12","v":0},{"$f":"Score!F12","v":0},{"$f":"Score!G12","v":0},{"$f":"Score!H12","v":0},{"$f":"Score!I12","v":0},null,{"$f":"Score!K12","v":0},{"$f":"Score!L12","v":0},{"$f":"Score!M12","v":0},{"$f":"Score!N12","v":0},{"$f":"Score!O12","v":0},{"$f":"Score!P12","v":0},{"$f":"Score!Q12","v":0},{"$f":"Score!R12","v":0}]
[{"$f":"Score!A13","v":"9h00"},{"$f":"Score!B13","v":"STRASBOURG SUD A"},{"$f":"Score!C13","v":"SARREBOURG MSH"},null,null,null,null,null,null,null,{"$f":"Score!K13","v":"ESSAHB - M11"},{"$f":"Score!L13","v":"HSG HANAUERLAND"},null,null,null,null,{"$f":"Score!Q13","v":0},{"$f":"Score!R13","v":0}]
[{"$f":"Score!A14","v":"9h22"},{"$f":"Score!B14","v":"STRASBOURG SUD B"},{"$f":"Score!C14","v":"ASPTT"},null,null,null,null,null,null,null,"Match Moins de 13",null,null,null,null,null,{"$f":"Score!Q14","v":"+5' min d'échauff"},{"$f":"Score!R14","v":0}]
[{"$f":"Score!A15","v":"9h44"},{"$f":"Score!B15","v":"SELESTAT AHB B"},{"$f":"Score!C15","v":"CVJM WALDDORFHÄSLACH"},null,null,null,null,null,null,null,{"$f":"Score!K15","v":"HC ECKBOLSHEIM - M11"},{"$f":"Score!L15","v":"ATH - M11"},null,null,null,null,{"$f":"Score!Q15","v":"+5' min d'échauff"},{"$f":"Score!R15","v":0}]
[{"$f":"Score!A16","v":"10h06"},{"$f":"Score!B16","v":"SELESTAT AHB A"},{"$f":"Score!C16","v":"ESBM GBDH"},null,null,null,null,null,null,null,"Match Moins de 13",null,null,null,null,null,{"$f":"Score!Q16","v":"+5' min d'échauff"},{"$f":"Score!R16","v":0}]
[{"$f":"Score!A17","v":"10h23"},{"$f":"Score!B17","v":"CVJM WALDDORFHÄSLACH"},{"$f":"Score!C17","v":"STRASBOURG SUD A"},null,null,null,null,null,null,null,{"$f":"Score!K17","v":"ATH - M11"},{"$f":"Score!L17","v":"ESSAHB - M11"},null,null,null,null,{"$f":"Score!Q17","v":0},{"$f":"Score!R17","v":0}]
[{"$f":"Score!A18","v":"10h40"},{"$f":"Score!B18","v":"ESBM GBDH"},{"$f":"Score!C18","v":"STRASBOURG SUD B"},null,null,null,null,null,null,null,"Match Moins de 13",null,null,null,null,null,{"$f":"Score!Q18","v":0},{"$f":"Score!R18","v":0}]
[{"$f":"Score!A19","v":"10h57"},{"$f":"Score!B19","v":"SELESTAT AHB B"},{"$f":"Score!C19","v":"SARREBOURG MSH"},null,null,null,null,null,null,null,{"$f":"Score!K19","v":"HC ECKBOLSHEIM - M11"},{"$f":"Score!L19","v":"HSG HANAUERLAND"},null,null,null,null,{"$f":"Score!Q19","v":0},{"$f":"Score!R19","v":0}]
[{"$f":"Score!A20","v":"11h14"},{"$f":"Score!B20","v":"SELESTAT AHB A"},{"$f":"Score!C20","v":"ASPTT"},null,null,null,null,null,null,null,"Match Moins de 13",null,null,null,null,null,{"$f":"Score!Q20","v":0},{"$f":"Score!R20","v":0}]
[{"$f":"Score!A21","v":"11h31"},{"$f":"Score!B21","v":"STRASBOURG SUD A"},{"$f":"Score!C21","v":"SELESTAT AHB B"},null,null,null,null,null,null,null,{"$f":"Score!K21","v":"ESSAHB - M11"},{"$f":"Score!L21","v":"HC ECKBOLSHEIM - M11"},null,null,null,null,{"$f":"Score!Q21","v":0},{"$f":"Score!R21","v":0}]
[{"$f":"Score!A22","v":"11h48"},{"$f":"Score!B22","v":"STRASBOURG SUD B"},{"$f":"Score!C22","v":"SELESTAT AHB A"},null,null,null,null,null,null,null,"Match Moins de 13",null,null,null,null,null,{"$f":"Score!Q22","v":0},{"$f":"Score!R22","v":0}]
[{"$f":"Score!A23","v":"12h05"},{"$f":"Score!B23","v":"SARREBOURG MSH"},{"$f":"Score!C23","v":"CVJM WALDDORFHÄSLACH"},null,null,null,null,null,null,null,{"$f":"Score!K23","v":"HSG HANAUERLAND"},{"$f":"Score!L23","v":"ATH - M11"},null,null,null,null,{"$f":"Score!Q23","v":0},{"$f":"Score!R23","v":0}]
[{"$f":"Score!A24","v":"12h20"},{"$f":"Score!B24","v":"ASPTT"},{"$f":"Score!C24","v":"ESBM GBDH"},null,null,null,null,null,null,null,"Match Moins de 13",null,null,null,null,null,{"$f":"Score!Q24","v":0},{"$f":"Score!R24","v":0}]
[null,"Pause repas",null,null,null,null,null,null,null,null,"Déplacement au Gymnase des 2 rives et pause repas (15min)"]
[]
[null,"CLASSEMENTS PHASE PRELIMINAIRE"]
["LES RESULTATS SONT A ENVOYER PAR SMS AU",null,null,null,null,null,null,null,null,"Déroulement du tournoi :\n- 1ère phase : 3 poules de 4 équipes jouent un championnat, toutes les équipes se rencontrent.\n- 2ème phase : les 2 premiers de chaque poule, plus les 2 meilleurs troisièmes sont reversés en Finales ELITE\nLes autres équipes sont reversées en Finales ESPOIR"]
[777613730]
[]
["FORMAT DE L'ENVOI"]
["COMPET - RECEVANT - SCORE - SCORE - VISITEUR"]
[{"$f":"\"M11 - \"&B18&\" 17 - 12 \"&C18","v":"M11 - STRASBOURG SUD A 17 - 12 SARREBOURG MSH"}]
["En cas d'égalité, goal avérage particulier, puis séance de jets de 7m (3 jets par équipe, puis but en or)"]

{"sheet":"1ère Phase M13 FDT","index":9,"n_rows":39,"n_cols":18,"rows_kept":39,"cut":false,"hidden":false,"merged":[[11,3,11,6],[32,9,37,15],[33,0,34,6],[2,0,2,3],[6,2,6,6],[7,3,7,6],[8,3,8,6],[9,3,9,6],[10,3,10,6]]}
[]
[]
["TOURNOI INTERNATIONAL NOEL\nSTRASBOURG, 2019",null,null,null,null,null,null,null,null,null,"MOINS DE 13 ANS, MASCULINS\nDIMANCHE 22 DECEMBRE 2019"]
[]
[null,"POULES ET CLASSEMENTS PHASES PRELIMINAIRES"]
[]
[null,{"$f":"Score!K9","v":"JEAN-NICOLAS MULLER"},{"$f":"Score!T9","v":"GYMNASE REUSS"}]
[null,"POULE A","POULE B","POULE C",null,null,null,null,null,null,"Suivi de la compétition en direct"]
[null,{"$f":"equi_13G_PA_1","v":"TUS ALTENHEIM"},{"$f":"equi_13G_PB_1","v":"STRASBOURG SUD HB"},{"$f":"equi_13G_PC_1","v":"ASH - HAGUENAU"},null,null,null,null,null,null,"Réultats et classement mis à jours"]
[null,{"$f":"equi_13G_PA_2","v":"ESSAHB - M13"},{"$f":"equi_13G_PB_2","v":"SR INGWILLER BOUXWILLER"},{"$f":"equi_13G_PC_2","v":"US SAINT VIT"},null,null,null,null,null,"www.sshb.fr/TIN2019/2019m13G.html"]
[null,{"$f":"equi_13G_PA_3","v":"HC ECKBOLSHEIM - M13"},{"$f":"equi_13G_PB_3","v":"TV MURI HANDBALL"},{"$f":"equi_13G_PC_3","v":"VAHB - VERDUN"}]
[null,{"$f":"equi_13G_PA_4","v":"ATH - M13"},{"$f":"equi_13G_PB_4","v":"SR INGWILLER BOUXWILLER"},{"$f":"equi_13G_PC_4","v":"CVJM WALDDORFHÄSLACH"},null,null,null,null,null,null,"Qrcode généré par Unitag.io"]
[]
[null,"JEAN-NICOLAS MULLER - 36 rue du Languedoc - 67 Strasbourg",null,null,null,null,null,{"$f":"Score!H9","v":0},{"$f":"Score!I9","v":0},null,"GYMNASE REUSS - 62 Allée Reuss - 67100 Strasbourg",null,null,null,null,null,{"$f":"Score!Q9","v":0},{"$f":"Score!R9","v":0}]
[null,{"$f":"Score!B10","v":0},null,null,null,null,null,{"$f":"Score!H10","v":0},{"$f":"Score!I10","v":0},null,{"$f":"Score!K10","v":0},{"$f":"Score!L10","v":0},{"$f":"Score!M10","v":0},{"$f":"Score!N10","v":0},{"$f":"Score!O10","v":0},{"$f":"Score!P10","v":0},{"$f":"Score!Q10","v":0},{"$f":"Score!R10","v":0}]
[null,{"$f":"Score!B11","v":"Recevants"},{"$f":"Score!C11","v":"Visiteurs"},{"$f":"Score!D11","v":"Sc-R"},{"$f":"Score!E11","v":"Sc-V"},{"$f":"Score!F11","v":"Pt-R"},{"$f":"Score!G11","v":"Pt-V"},{"$f":"Score!H11","v":"Arbitrage"},{"$f":"Score!I11","v":"Sanctions"},null,{"$f":"Score!K11","v":"Recevants"},{"$f":"Score!L11","v":"Visiteurs"},{"$f":"Score!M11","v":"Sc-R"},{"$f":"Score!N11","v":"Sc-V"},{"$f":"Score!O11","v":"Pt-R"},{"$f":"Score!P11","v":"Pt-V"},{"$f":"Score!Q11","v":"Arbitrage"},{"$f":"Score!R11","v":"Sanctions"}]
[{"$f":"Score!A12","v":"Poules"},{"$f":"Score!B12","v":0},{"$f":"Score!C12","v":0},{"$f":"Score!D12","v":0},{"$f":"Score!E12","v":0},{"$f":"Score!F12","v":0},{"$f":"Score!G12","v":0},{"$f":"Score!H12","v":0},{"$f":"Score!I12","v":0},null,{"$f":"Score!K12","v":0},{"$f":"Score!L12","v":0},{"$f":"Score!M12","v":0},{"$f":"Score!N12","v":0},{"$f":"Score!O12","v":0},{"$f":"Score!P12","v":0},{"$f":"Score!Q12","v":0},{"$f":"Score!R12","v":0}]
[{"$f":"Score!A13","v":"9h00"},"MATCH MOINS DE 11",null,null,null,null,null,null,null,null,{"$f":"Score!T13","v":"STRASBOURG SUD HB"},{"$f":"Score!U13","v":"SR INGWILLER BOUXWILLER"},null,null,null,null,{"$f":"Score!Q13","v":0},{"$f":"Score!R13","v":0}]
[{"$f":"Score!A14","v":"9h22"},{"$f":"Score!K14","v":"TUS ALTENHEIM"},{"$f":"Score!L14","v":"ATH - M13"},null,null,null,null,null,null,null,{"$f":"Score!T14","v":"ASH - HAGUENAU"},{"$f":"Score!U14","v":"CVJM WALDDORFHÄSLACH"},null,null,null,null,{"$f":"Score!Q14","v":"+5' min d'échauff"},{"$f":"Score!R14","v":0}]
[{"$f":"Score!A15","v":"9h44"},"MATCH MOINS DE 11",null,null,null,null,null,null,null,null,{"$f":"Score!T15","v":"VILLIERS HANDBALL"},{"$f":"Score!U15","v":"TV MURI HANDBALL"},null,null,null,null,{"$f":"Score!Q15","v":"+5' min d'échauff"},{"$f":"Score!R15","v":0}]
[{"$f":"Score!A16","v":"10h06"},{"$f":"Score!K16","v":"ESSAHB - M13"},{"$f":"Score!L16","v":"HC ECKBOLSHEIM - M13"},null,null,null,null,null,null,null,{"$f":"Score!T16","v":"US SAINT VIT"},{"$f":"Score!U16","v":"VAHB - VERDUN"},null,null,null,null,{"$f":"Score!Q16","v":"+5' min d'échauff"},{"$f":"Score!R16","v":0}]
[{"$f":"Score!A17","v":"10h23"},"MATCH MOINS DE 11",null,null,null,null,null,null,null,null,{"$f":"Score!T17","v":"TV MURI HANDBALL"},{"$f":"Score!U17","v":"STRASBOURG SUD HB"},null,null,null,null,{"$f":"Score!Q17","v":0},{"$f":"Score!R17","v":0}]
[{"$f":"Score!A18","v":"10h40"},{"$f":"Score!K18","v":"HC ECKBOLSHEIM - M13"},{"$f":"Score!L18","v":"TUS ALTENHEIM"},null,null,null,null,null,null,null,{"$f":"Score!T18","v":"VAHB - VERDUN"},{"$f":"Score!U18","v":"ASH - HAGUENAU"},null,null,null,null,{"$f":"Score!Q18","v":0},{"$f":"Score!R18","v":0}]
[{"$f":"Score!A19","v":"10h57"},"MATCH MOINS DE 11",null,null,null,null,null,null,null,null,{"$f":"Score!T19","v":"SR INGWILLER BOUXWILLER"},{"$f":"Score!U19","v":"SR INGWILLER BOUXWILLER"},null,null,null,null,{"$f":"Score!Q19","v":0},{"$f":"Score!R19","v":0}]
[{"$f":"Score!A20","v":"11h14"},{"$f":"Score!K20","v":"ESSAHB - M13"},{"$f":"Score!L20","v":"ATH - M13"},null,null,null,null,null,null,null,{"$f":"Score!T20","v":"US SAINT VIT"},{"$f":"Score!U20","v":"CVJM WALDDORFHÄSLACH"},null,null,null,null,{"$f":"Score!Q20","v":0},{"$f":"Score!R20","v":0}]
[{"$f":"Score!A21","v":"11h31"},"MATCH MOINS DE 11",null,null,null,null,null,null,null,null,{"$f":"Score!T21","v":"STRASBOURG SUD HB"},{"$f":"Score!U21","v":"SR INGWILLER BOUXWILLER"},null,null,null,null,{"$f":"Score!Q21","v":0},{"$f":"Score!R21","v":0}]
[{"$f":"Score!A22","v":"11h48"},{"$f":"Score!K22","v":"TUS ALTENHEIM"},{"$f":"Score!L22","v":"ESSAHB - M13"},null,null,null,null,null,null,null,{"$f":"Score!T22","v":"ASH - HAGUENAU"},{"$f":"Score!U22","v":"US SAINT VIT"},null,null,null,null,{"$f":"Score!Q22","v":0},{"$f":"Score!R22","v":0}]
[{"$f":"Score!A23","v":"12h05"},"MATCH MOINS DE 11",null,null,null,null,null,null,null,null,{"$f":"Score!T23","v":"SR INGWILLER BOUXWILLER"},{"$f":"Score!U23","v":"TV MURI HANDBALL"},null,null,null,null,{"$f":"Score!Q23","v":0},{"$f":"Score!R23","v":0}]
[{"$f":"Score!A24","v":"12h20"},{"$f":"Score!K24","v":"ATH - M13"},{"$f":"Score!L24","v":"HC ECKBOLSHEIM - M13"},null,null,null,null,null,null,null,{"$f":"Score!T24","v":"CVJM WALDDORFHÄSLACH"},{"$f":"Score!U24","v":"VAHB - VERDUN"},null,null,null,null,{"$f":"Score!Q24","v":0},{"$f":"Score!R24","v":0}]
[null,"Déplacement à GYMNASE REUSS (5min) et pause repas",null,null,null,null,null,null,null,null,"Pause repas"]
[]
[null,"CLASSEMENTS PHASE PRELIMINAIRE"]
["LES RESULTATS SONT A ENVOYER PAR SMS AU",null,null,null,null,null,null,null,null,"Déroulement du tournoi :\n- 1ère phase : 3 poules de 4 équipes jouent un championnat, toutes les équipes se rencontrent.\n- 2ème phase : les 2 premiers de chaque poule, plus les 2 meilleurs troisièmes sont reversés en Finales ELITE\nLes autres équipes sont reversées en Finales ESPOIR"]
[777613730]
[]
["FORMAT DE L'ENVOI"]
["COMPET - RECEVANT - SCORE - SCORE - VISITEUR"]
[{"$f":"\"M13G - \"&B18&\" 17 - 12 \"&C18","v":"M13G - MATCH MOINS DE 11 17 - 12 "}]
["En cas d'égalité, goal avérage particulier, puis séance de jets de 7m (3 jets par équipe, puis but en or)"]

{"sheet":"Finales M11 FDT","index":10,"n_rows":71,"n_cols":39,"rows_kept":71,"cut":false,"hidden":false,"merged":[[70,13,71,15],[70,19,71,22],[70,28,71,31]]}
[null,null,null,null,null,null,null,null,null,null,null,null,null,null,null,null,null,null,null,null,null,null,null,null,null,null,null,{"$f":"LEFT(CELL(\"filename\",Score!K4),FIND(\"[\",CELL(\"filename\",Score!K4))-2)&\"\\\"&\"partie_2_m11.html\"","v":"C:\\Users\\fseys\\Dropbox (Compte personnel)\\! ! ! Tournoi Noël 2019\\! Tournoi\\partie_2_m11.html"}]
[null,null,null,null,"RESULTATS ET CLASSEMENTS PHASES FINALES",null,null,null,null,null,null,null,null,null,null,null,null,null,null,null,null,null,null,null,null,null,null,"Date de derni&egrave;re modification : 02/12/2019 12:31:15"]
[null,null,null,null,{"$f":"Score!A1","v":"MOINS DE 11 MIXTE"}]
[]
[null,null,null,null,null,"FINALES","H","Sc-R","Pt-R","Pt-V","Sc-V","Arbitrage",null,null,"Sanctions"]
[null,null,null,null,"Quart de finale 1","M1",{"$f":"HOUR(AM6)&\"h\"&TEXT(MINUTE(AM6),\"00\")","v":"13h40"}," ",null,null," ",null,null,null,null,null,null,null,null,null,null,"1er",{"$f":"IF(ISBLANK(I21),\"-\",IF(I21>J21,H21,K21))","v":"-"},null,"1er",{"$f":"IF(ISBLANK(I20),\"-\",IF(I20>J20,H20,K20))","v":"-"},null,null,null,null,null,null,null,null,null,null,null,null,{"$f":"Fin_matin+Durée2","v":"13:40:00"}]
[null,null,null,null,"Quart de finale 3","M2","13h57"," ",null,null," ",null,null,null,null,null,null,null,null,null,null,"2eme",{"$f":"IF(ISBLANK(I21),\"-\",IF(I21<J21,H21,K21))","v":"-"},null,"2eme",{"$f":"IF(ISBLANK(I20),\"-\",IF(I20<J20,H20,K20))","v":"-"},null,null,null,null,null,null,null,null,null,null,null,null,{"$f":"AM6+MeP+Durée","v":"13:57:00"}]
[null,null,null,null,"Quart de finale 2","M3","14h14"," ",null,null," ",null,null,null,null,null,null,null,null,null,null,"3eme",{"$f":"IF(ISBLANK(I19),\"-\",IF(I19>J19,H19,K19))","v":"-"},null,"3eme",{"$f":"IF(ISBLANK(I18),\"-\",IF(I18>J18,H18,K18))","v":"-"},null,null,null,null,null,null,null,null,null,null,null,null,"14:14:00"]
[null,null,null,null,"Quart de finale 4","M4","14h31"," ",null,null," ",null,null,null,null,null,null,null,null,null,null,"4eme",{"$f":"IF(ISBLANK(I19),\"-\",IF(I19<J19,H19,K19))","v":"-"},null,"4eme",{"$f":"IF(ISBLANK(I18),\"-\",IF(I18<J18,H18,K18))","v":"-"},null,null,null,null,null,null,null,null,null,null,null,null,"14:31:00"]
[null,null,null,null,"Demi-Finale 1 Esp","M13","14h48"," ",null,null," ",null,null,null,null,null,null,null,null,null,null,"5eme",{"$f":"IF(ISBLANK(I17),\"-\",IF(I17>J17,H17,K17))","v":"-"},null,null,null,null,null,null,null,null,null,null,null,null,null,null,null,"14:48:00"]
[null,null,null,null,"Demi-Finale 2 Esp","M14","15h05"," ",null,null," ",null,null,null,null,null,null,null,null,null,null,"6eme",{"$f":"IF(ISBLANK(I17),\"-\",IF(I17<J17,H17,K17))","v":"-"},null,null,null,null,null,null,null,null,null,null,null,null,null,null,null,"15:05:00"]
[null,null,null,null,"Petite Demi Elite 1 ","M5","15h22",{"$f":"IF(ISBLANK(I6),\"Perdant M1\",IF(I6>J6,K6,H6))","v":"Perdant M1"},null,null,{"$f":"IF(ISBLANK(I8),\"Perdant M2\",IF(I8>J8,K8,H8))","v":"Perdant M2"},null,null,null,null,null,null,null,null,null,null,"7eme",{"$f":"IF(ISBLANK(I16),\"-\",IF(I16>J16,H16,K16))","v":"-"},null,null,null,null,null,null,null,null,null,null,null,null,null,null,null,"15:22:00"]
[null,null,null,null,"Petite Demi Elite 2","M6","15h39",{"$f":"IF(ISBLANK(I7),\"Perdant M3\",IF(I7>J7,K7,H7))","v":"Perdant M3"},null,null,{"$f":"IF(ISBLANK(I9),\"Perdant M4\",IF(I9>J9,K9,H9))","v":"Perdant M4"},null,null,null,null,null,null,null,null,null,null,"8eme",{"$f":"IF(ISBLANK(I16),\"-\",IF(I16<J16,H16,K16))","v":"-"},null,null,null,null,null,null,null,null,null,null,null,null,null,null,null,"15:39:00"]
[null,null,null,null,"Demi Elite 1","M9","15h56",{"$f":"IF(ISBLANK(I6),\"Gagnant M1\",IF(I6>J6,H6,K6))","v":"Gagnant M1"},null,null,{"$f":"IF(ISBLANK(I8),\"Gagnant M2\",IF(I8<J8,K8,H8))","v":"Gagnant M2"},null,null,null,null,null,null,null,null,null,null,null,null,null,null,null,null,null,null,null,null,null,null,null,null,null,null,null,"15:56:00"]
[null,null,null,null,"Demi Elite 2","M10","16h13",{"$f":"IF(ISBLANK(I7),\"Gagnant M3\",IF(I7>J7,H7,K7))","v":"Gagnant M3"},null,null,{"$f":"IF(ISBLANK(I9),\"Gagnant M4\",IF(I9<J9,K9,H9))","v":"Gagnant M4"},null,null,null,null,null,null,null,null,null,"SI EGALITE A L A FIN D'UN MATCH => SCEANCE DE JET DE 7M",null,null,null,null,null,null,null,null,null,null,null,null,null,null,null,null,null,"16:13:00"]
[null,null,null,null,"Classement 7-8","M7","16h30",{"$f":"IF(ISBLANK(I12),\"Perdant M5\",IF(I12>J12,K12,H12))","v":"Perdant M5"},null,null,{"$f":"IF(ISBLANK(I13),\"Perdant M6\",IF(I13>J13,K13,H13))","v":"Perdant M6"},null,null,null,null,null,null,null,null,null,"(3 jets par équipe puis mort subite)",null,null,null,null,null,null,null,null,null,null,null,null,null,null,null,null,null,"16:30:00"]
[null,null,null,null,"Classement 5-6","M8","16h47",{"$f":"IF(ISBLANK(I12),\"Gagnant M5\",IF(I12>J12,H12,K12))","v":"Gagnant M5"},null,null,{"$f":"IF(ISBLANK(I13),\"Gagnant M6\",IF(I13<J13,K13,H13))","v":"Gagnant M6"},null,null,null,null,null,null,null,null,null,null,null,null,null,null,null,null,null,null,null,null,null,null,null,null,null,null,null,"16:47:00"]
[null,null,null,null,"Petite Finale Espoir","M15","17h04",{"$f":"IF(ISBLANK(I10),\"Perdant M13\",IF(I10>J10,K10,H10))","v":"Perdant M13"},null,null,{"$f":"IF(ISBLANK(I11),\"Perdant M14\",IF(I11>J11,K11,H11))","v":"Perdant M14"},null,null,null,null,null,null,null,null,null,null,null,null,null,null,null,null,null,null,null,null,null,null,null,null,null,null,null,"17:04:00"]
[null,null,null,null,"Petite finale Elite","M11","16h59",{"$f":"IF(ISBLANK(I14),\"Perdant M9\",IF(I14<J14,H14,K14))","v":"Perdant M9"},null,null,{"$f":"IF(ISBLANK(I15),\"Perdant M10\",IF(I15<J15,H15,K15))","v":"Perdant M10"},null,null,null,null,null,null,null,null,null,null,null,null,null,null,null,null,null,null,null,null,null,null,null,null,null,null,null,"16:59:00"]
[null,null,null,null,"Finale Espoir","M16","17h16",{"$f":"IF(ISBLANK(I10),\"Gagnant M13\",IF(I10<J10,K10,H10))","v":"Gagnant M13"},null,null,{"$f":"IF(ISBLANK(I11),\"Gagnant M14\",IF(I11<J11,K11,H11))","v":"Gagnant M14"},null,null,null,null,null,null,null,null,null,null,null,null,null,null,null,null,null,null,null,null,null,null,null,null,null,null,null,"17:16:00"]
[null,null,null,null,"Finale Elite","M12","17h33",{"$f":"IF(ISBLANK(I14),\"Gagnant M9\",IF(I14>J14,H14,K14))","v":"Gagnant M9"},null,null,{"$f":"IF(ISBLANK(I15),\"Gagnant M10\",IF(I15<J15,K15,H15))","v":"Gagnant M10"},null,null,null,null,null,null,null,null,null,null,null,null,null,null,null,null,null,null,null,null,null,null,null,null,null,null,null,"17:33:00"]
[null,null,null,null,null,null,null,"TOURNOI HANDBALL JEUNES\nSTRASBOURG NOËL 2019",null,null,null,null,null,null,null,null,"FINALES",null,null,null,null,null,null,null,null,"MOINS DE 11 ANS, MIXTES\nDIMANCHE 22 DECEMBRE 2019"]
[null,null,null,null,null,null,null,null,null,null,"RESULTATS ET CLASSEMENTS PHASES FINALES"]
[null,null,null,null,null,null,null,"QUART",null,null,null,null,null,"QUART",null,null,null,null,null,null,null,null,null,null,null,"QUART",null,null,null,null,null,"QUART"]
[null,null,null,null,null,null,null,"M1",null,null,null,null,null,"M3",null,null,null,null,null,null,null,null,null,null,null,"M2",null,null,null,null,null,"M4"]
[null,null,null,null,null,null,null,"13h40",null,null,null,null,null,"14h14",null,null,null,null,null,null,null,null,null,null,null,"13h57",null,null,null,null,null,"14h31"]
[null,null,null,null,null,null,null,"-",0,0,"-",null,null,"-",0,0,"-",null,null,null,null,null,null,null,null,"-",0,0,"-",null,null,"-",0,0,"-"]
[]
[null,null,null,null,null,null,null,null,null,null,"PETITE DEMIE",null,null,null,null,null,null,null,null,null,null,null,null,null,null,null,null,null,"PETITE DEMIE"]
[null,null,null,null,null,null,null,null,null,null,"M7",null,null,null,null,null,null,null,null,null,null,null,null,null,null,null,null,null,"M8"]
[null,null,null,null,null,null,null,null,null,null,"15h22",null,null,null,null,null,null,null,null,null,null,null,null,null,null,null,null,null,"15h39"]
[null,null,null,null,null,null,null,null,null,null,"Perdant M1",0,0,"Perdant M3",null,null,"CLASSEMENT 1",null,null,null,null,null,null,null,null,null,null,null,"Perdant M2",0,0,"Perdant M4"]
[null,null,null,null,null,null,null,null,null,null,null,null,null,null,null,null,"M11"]
[null,null,null,null,null,null,null,null,null,null,null,null,null,null,null,null,"16h30"]
[null,null,null,null,null,null,null,null,null,null,null,null,null,null,null,null,"Perdant M7",0,0,"Perdant M8"]
[null,null,null,null,null,null,null,null,null,null,null,null,null,null,null,null,null,null,null,null,null,null,"CLASSEMENT 2"]
[null,null,null,null,null,null,null,null,null,null,null,null,null,null,null,null,null,null,null,null,null,null,"M12"]
[null,null,null,null,null,null,null,null,null,null,null,null,null,null,null,null,null,null,null,null,null,null,"16h47"]
[null,null,null,null,null,null,null,null,null,null,null,null,null,null,null,null,null,null,null,null,null,null,"Gagnant M7",0,0,"Gagnant M8"]
[]
[null,null,null,null,null,null,null,null,null,null,null,null,null,null,null,null,null,null,null,"PETITE FINALE"]
[null,null,null,null,null,null,null,null,null,null,null,null,null,null,null,null,null,null,null,"M14"]
[null,null,null,null,null,null,null,null,null,null,null,null,null,null,null,null,null,null,null,"16h59"]
[null,null,null,null,null,null,null,null,null,null,"DEMIE FINALE",null,null,null,null,null,null,null,null,"Perdant M9",0,0,"Perdant M10",null,null,null,null,null,"DEMIE FINALE"]
[null,null,null,null,null,null,null,null,null,null,"M9",null,null,null,null,null,null,null,null,null,null,null,null,null,null,null,null,null,"M10"]
[null,null,null,null,null,null,null,null,null,null,"15h56",null,null,null,null,null,null,null,null,null,null,null,null,null,null,null,null,null,"16h13"]
[null,null,null,null,null,null,null,null,null,null,"Gagnant M1",0,0,"Gagnant M3",null,null,null,null,null,null,null,null,null,null,null,null,null,null,"Gagnant M2",0,0,"Gagnant M4"]
[null,null,null,null,null,null,null,null,null,null,null,null,null,null,null,null,null,null,null,"FINALE"]
[null,null,null,null,null,null,null,null,null,null,null,null,null,null,null,null,null,null,null,"M16"]
[null,null,null,null,null,null,null,null,null,null,null,null,null,null,null,null,null,null,null,"17h33"]
[null,null,null,null,null,null,null,null,null,null,null,null,null,null,null,null,null,null,null,"Gagnant M9",0,0,"Gagnant M10"]
[]
[]
[]
[null,null,null,null,null,null,null,null,null,null,null,null,null,"DEMI 1 ESPOIR",null,null,null,null,null,null,null,null,null,null,null,"DEMI 2 ESPOIR"]
[null,null,null,null,null,null,null,null,null,null,null,null,null,"M5",null,null,null,null,null,null,null,null,null,null,null,"M6"]
[null,null,null,null,null,null,null,null,null,null,null,null,null,"14h48",null,null,null,null,null,null,null,null,null,null,null,"15h05"]
[null,null,null,null,null,null,null,null,null,null,null,null,null,"-",0,0,"-",null,null,null,null,null,null,null,null,"-",0,0,"-"]
[]
[null,null,null,null,null,null,null,"PALMARES ELITE",null,null,null,null,null,null,null,null,null,null,null,"PETITE Finale ESPOIR",null,null,null,null,null,null,null,null,null,null,null,"PALMARES ESPOIR"]
[null,null,null,null,null,null,null,"1er",null,null,null,null,null,null,null,null,null,null,null,"M13",null,null,null,null,null,null,null,null,null,null,null,"1er"]
[null,null,null,null,null,null,null,"2ème",null,null,null,null,null,null,null,null,null,null,null,"17h04",null,null,null,null,null,null,null,null,null,null,null,"2ème"]
[null,null,null,null,null,null,null,"3ème",null,null,null,null,null,null,null,null,null,null,null,"Perdant M5",0,0,"Perdant M6",null,null,null,null,null,null,null,null,"3ème"]
[null,null,null,null,null,null,null,"4ème",null,null,null,null,null,null,null,null,null,null,null,null,null,null,null,null,null,null,null,null,null,null,null,"4ème"]
[null,null,null,null,null,null,null,"5ème",null,null,null,null,null,null,null,null,null,null,null,"FINALE ESPOIR"]
[null,null,null,null,null,null,null,"6ème",null,null,null,null,null,null,null,null,null,null,null,"M15"]
[null,null,null,null,null,null,null,"7ème",null,null,null,null,null,null,null,null,null,null,null,"17h16"]
[null,null,null,null,null,null,null,"8ème",null,null,null,null,null,null,null,null,null,null,null,"Gagnant M5",0,0,"Gagnant M6"]
[null,null,null,null,null,null,null,"En cas d'égalité sur ces matchs, séance de jet de 7 m (3 jets par équipes, puis but en or)"]
[]
[null,null,null,null,null,null,null,null,null,null,null,null,null,"Numéro du match",null,null,null,null,null,"VICTOIRE / GEWININNER",null,null,null,null,null,null,null,null,"DEFAITE / VERLIERER "]

{"sheet":"Finales M13 FDT","index":11,"n_rows":71,"n_cols":39,"rows_kept":71,"cut":false,"hidden":false,"merged":[[70,19,71,22],[70,28,71,31],[70,13,71,15]]}
[null,null,null,null,null,null,null,null,null,null,null,null,null,null,null,null,null,null,null,null,null,null,null,null,null,null,null,{"$f":"LEFT(CELL(\"filename\",Score!K4),FIND(\"[\",CELL(\"filename\",Score!K4))-2)&\"\\\"&\"partie_2_m13.html\"","v":"C:\\Users\\fseys\\Dropbox (Compte personnel)\\! ! ! Tournoi Noël 2019\\! Tournoi\\partie_2_m13.html"}]
[null,null,null,null,"RESULTATS ET CLASSEMENTS PHASES FINALES",null,null,null,null,null,null,null,null,null,null,null,null,null,null,null,null,null,null,null,null,null,null,"Date de derni&egrave;re modification : 02/12/2019 12:31:15"]
[null,null,null,null,{"$f":"Score!R1","v":"MOINS DE 13 MASCULINS"}]
[]
[null,null,null,null,null,"FINALES","H","Sc-R","Pt-R","Pt-V","Sc-V","Arbitrage",null,null,"Sanctions"]
[null,null,null,null,"Quart de finale 1","M1",{"$f":"HOUR(AM6)&\"h\"&TEXT(MINUTE(AM6),\"00\")","v":"13h40"}," ",null,null," ",null,null,null,null,null,null,null,null,null,null,"1er",{"$f":"IF(ISBLANK(I21),\"-\",IF(I21>J21,H21,K21))","v":"-"},null,"1er",{"$f":"IF(ISBLANK(I20),\"-\",IF(I20>J20,H20,K20))","v":"-"},null,null,null,null,null,null,null,null,null,null,null,null,{"$f":"Fin_matin+Durée2","v":"13:40:00"}]
[null,null,null,null,"Quart de finale 3","M2","13h57"," ",null,null," ",null,null,null,null,null,null,null,null,null,null,"2eme",{"$f":"IF(ISBLANK(I21),\"-\",IF(I21<J21,H21,K21))","v":"-"},null,"2eme",{"$f":"IF(ISBLANK(I20),\"-\",IF(I20<J20,H20,K20))","v":"-"},null,null,null,null,null,null,null,null,null,null,null,null,{"$f":"AM6+MeP+Durée","v":"13:57:00"}]
[null,null,null,null,"Quart de finale 2","M3","14h14"," ",null,null," ",null,null,null,null,null,null,null,null,null,null,"3eme",{"$f":"IF(ISBLANK(I19),\"-\",IF(I19>J19,H19,K19))","v":"-"},null,"3eme",{"$f":"IF(ISBLANK(I18),\"-\",IF(I18>J18,H18,K18))","v":"-"},null,null,null,null,null,null,null,null,null,null,null,null,"14:14:00"]
[null,null,null,null,"Quart de finale 4","M4","14h31"," ",null,null," ",null,null,null,null,null,null,null,null,null,null,"4eme",{"$f":"IF(ISBLANK(I19),\"-\",IF(I19<J19,H19,K19))","v":"-"},null,"4eme",{"$f":"IF(ISBLANK(I18),\"-\",IF(I18<J18,H18,K18))","v":"-"},null,null,null,null,null,null,null,null,null,null,null,null,"14:31:00"]
[null,null,null,null,"Demi-Finale 1 Esp","M13","14h48"," ",null,null," ",null,null,null,null,null,null,null,null,null,null,"5eme",{"$f":"IF(ISBLANK(I17),\"-\",IF(I17>J17,H17,K17))","v":"-"},null,null,null,null,null,null,null,null,null,null,null,null,null,null,null,"14:48:00"]
[null,null,null,null,"Demi-Finale 2 Esp","M14","15h05"," ",null,null," ",null,null,null,null,null,null,null,null,null,null,"6eme",{"$f":"IF(ISBLANK(I17),\"-\",IF(I17<J17,H17,K17))","v":"-"},null,null,null,null,null,null,null,null,null,null,null,null,null,null,null,"15:05:00"]
[null,null,null,null,"Petite Demi Elite 1 ","M5","15h22",{"$f":"IF(ISBLANK(I6),\"Perdant M1\",IF(I6>J6,K6,H6))","v":"Perdant M1"},null,null,{"$f":"IF(ISBLANK(I8),\"Perdant M2\",IF(I8>J8,K8,H8))","v":"Perdant M2"},null,null,null,null,null,null,null,null,null,null,"7eme",{"$f":"IF(ISBLANK(I16),\"-\",IF(I16>J16,H16,K16))","v":"-"},null,null,null,null,null,null,null,null,null,null,null,null,null,null,null,"15:22:00"]
[null,null,null,null,"Petite Demi Elite 2","M6","15h39",{"$f":"IF(ISBLANK(I7),\"Perdant M3\",IF(I7>J7,K7,H7))","v":"Perdant M3"},null,null,{"$f":"IF(ISBLANK(I9),\"Perdant M4\",IF(I9>J9,K9,H9))","v":"Perdant M4"},null,null,null,null,null,null,null,null,null,null,"8eme",{"$f":"IF(ISBLANK(I16),\"-\",IF(I16<J16,H16,K16))","v":"-"},null,null,null,null,null,null,null,null,null,null,null,null,null,null,null,"15:39:00"]
[null,null,null,null,"Demi Elite 1","M9","15h56",{"$f":"IF(ISBLANK(I6),\"Gagnant M1\",IF(I6>J6,H6,K6))","v":"Gagnant M1"},null,null,{"$f":"IF(ISBLANK(I8),\"Gagnant M2\",IF(I8<J8,K8,H8))","v":"Gagnant M2"},null,null,null,null,null,null,null,null,null,null,null,null,null,null,null,null,null,null,null,null,null,null,null,null,null,null,null,"15:56:00"]
[null,null,null,null,"Demi Elite 2","M10","16h13",{"$f":"IF(ISBLANK(I7),\"Gagnant M3\",IF(I7>J7,H7,K7))","v":"Gagnant M3"},null,null,{"$f":"IF(ISBLANK(I9),\"Gagnant M4\",IF(I9<J9,K9,H9))","v":"Gagnant M4"},null,null,null,null,null,null,null,null,null,"SI EGALITE A L A FIN D'UN MATCH => SCEANCE DE JET DE 7M",null,null,null,null,null,null,null,null,null,null,null,null,null,null,null,null,null,"16:13:00"]
[null,null,null,null,"Classement 7-8","M7","16h30",{"$f":"IF(ISBLANK(I12),\"Perdant M5\",IF(I12>J12,K12,H12))","v":"Perdant M5"},null,null,{"$f":"IF(ISBLANK(I13),\"Perdant M6\",IF(I13>J13,K13,H13))","v":"Perdant M6"},null,null,null,null,null,null,null,null,null,"(3 jets par équipe puis mort subite)",null,null,null,null,null,null,null,null,null,null,null,null,null,null,null,null,null,"16:30:00"]
[null,null,null,null,"Classement 5-6","M8","16h47",{"$f":"IF(ISBLANK(I12),\"Gagnant M5\",IF(I12>J12,H12,K12))","v":"Gagnant M5"},null,null,{"$f":"IF(ISBLANK(I13),\"Gagnant M6\",IF(I13<J13,K13,H13))","v":"Gagnant M6"},null,null,null,null,null,null,null,null,null,null,null,null,null,null,null,null,null,null,null,null,null,null,null,null,null,null,null,"16:47:00"]
[null,null,null,null,"Petite Finale Espoir","M15","17h04",{"$f":"IF(ISBLANK(I10),\"Perdant M13\",IF(I10>J10,K10,H10))","v":"Perdant M13"},null,null,{"$f":"IF(ISBLANK(I11),\"Perdant M14\",IF(I11>J11,K11,H11))","v":"Perdant M14"},null,null,null,null,null,null,null,null,null,null,null,null,null,null,null,null,null,null,null,null,null,null,null,null,null,null,null,"17:04:00"]
[null,null,null,null,"Petite finale Elite","M11","16h59",{"$f":"IF(ISBLANK(I14),\"Perdant M9\",IF(I14<J14,H14,K14))","v":"Perdant M9"},null,null,{"$f":"IF(ISBLANK(I15),\"Perdant M10\",IF(I15<J15,H15,K15))","v":"Perdant M10"},null,null,null,null,null,null,null,null,null,null,null,null,null,null,null,null,null,null,null,null,null,null,null,null,null,null,null,"16:59:00"]
[null,null,null,null,"Finale Espoir","M16","17h16",{"$f":"IF(ISBLANK(I10),\"Gagnant M13\",IF(I10<J10,K10,H10))","v":"Gagnant M13"},null,null,{"$f":"IF(ISBLANK(I11),\"Gagnant M14\",IF(I11<J11,K11,H11))","v":"Gagnant M14"},null,null,null,null,null,null,null,null,null,null,null,null,null,null,null,null,null,null,null,null,null,null,null,null,null,null,null,"17:16:00"]
[null,null,null,null,"Finale Elite","M12","17h33",{"$f":"IF(ISBLANK(I14),\"Gagnant M9\",IF(I14>J14,H14,K14))","v":"Gagnant M9"},null,null,{"$f":"IF(ISBLANK(I15),\"Gagnant M10\",IF(I15<J15,K15,H15))","v":"Gagnant M10"},null,null,null,null,null,null,null,null,null,null,null,null,null,null,null,null,null,null,null,null,null,null,null,null,null,null,null,"17:33:00"]
[null,null,null,null,null,null,null,"TOURNOI HANDBALL JEUNES\nSTRASBOURG NOËL 2019",null,null,null,null,null,null,null,null,"FINALES",null,null,null,null,null,null,null,null,"MOINS DE 13 ANS, GARÇONS\nDIMANCHE 22 DECEMBRE 2019"]
[null,null,null,null,null,null,null,null,null,null,"RESULTATS ET CLASSEMENTS PHASES FINALES"]
[null,null,null,null,null,null,null,"QUART",null,null,null,null,null,"QUART",null,null,null,null,null,null,null,null,null,null,null,"QUART",null,null,null,null,null,"QUART"]
[null,null,null,null,null,null,null,"M1",null,null,null,null,null,"M3",null,null,null,null,null,null,null,null,null,null,null,"M2",null,null,null,null,null,"M4"]
[null,null,null,null,null,null,null,"13h40",null,null,null,null,null,"14h14",null,null,null,null,null,null,null,null,null,null,null,"13h57",null,null,null,null,null,"14h31"]
[null,null,null,null,null,null,null,"-",0,0,"-",null,null,"-",0,0,"-",null,null,null,null,null,null,null,null,"-",0,0,"-",null,null,"-",0,0,"-"]
[]
[null,null,null,null,null,null,null,null,null,null,"PETITE DEMIE",null,null,null,null,null,null,null,null,null,null,null,null,null,null,null,null,null,"PETITE DEMIE"]
[null,null,null,null,null,null,null,null,null,null,"M7",null,null,null,null,null,null,null,null,null,null,null,null,null,null,null,null,null,"M8"]
[null,null,null,null,null,null,null,null,null,null,"15h22",null,null,null,null,null,null,null,null,null,null,null,null,null,null,null,null,null,"15h39"]
[null,null,null,null,null,null,null,null,null,null,"Perdant M1",0,0,"Perdant M3",null,null,"CLASSEMENT 1",null,null,null,null,null,null,null,null,null,null,null,"Perdant M2",0,0,"Perdant M4"]
[null,null,null,null,null,null,null,null,null,null,null,null,null,null,null,null,"M11"]
[null,null,null,null,null,null,null,null,null,null,null,null,null,null,null,null,"16h30"]
[null,null,null,null,null,null,null,null,null,null,null,null,null,null,null,null,"Perdant M7",0,0,"Perdant M8"]
[null,null,null,null,null,null,null,null,null,null,null,null,null,null,null,null,null,null,null,null,null,null,"CLASSEMENT 2"]
[null,null,null,null,null,null,null,null,null,null,null,null,null,null,null,null,null,null,null,null,null,null,"M12"]
[null,null,null,null,null,null,null,null,null,null,null,null,null,null,null,null,null,null,null,null,null,null,"16h47"]
[null,null,null,null,null,null,null,null,null,null,null,null,null,null,null,null,null,null,null,null,null,null,"Gagnant M7",0,0,"Gagnant M8"]
[]
[null,null,null,null,null,null,null,null,null,null,null,null,null,null,null,null,null,null,null,"PETITE FINALE"]
[null,null,null,null,null,null,null,null,null,null,null,null,null,null,null,null,null,null,null,"M14"]
[null,null,null,null,null,null,null,null,null,null,null,null,null,null,null,null,null,null,null,"16h59"]
[null,null,null,null,null,null,null,null,null,null,"DEMIE FINALE",null,null,null,null,null,null,null,null,"Perdant M9",0,0,"Perdant M10",null,null,null,null,null,"DEMIE FINALE"]
[null,null,null,null,null,null,null,null,null,null,"M9",null,null,null,null,null,null,null,null,null,null,null,null,null,null,null,null,null,"M10"]
[null,null,null,null,null,null,null,null,null,null,"15h56",null,null,null,null,null,null,null,null,null,null,null,null,null,null,null,null,null,"16h13"]
[null,null,null,null,null,null,null,null,null,null,"Gagnant M1",0,0,"Gagnant M3",null,null,null,null,null,null,null,null,null,null,null,null,null,null,"Gagnant M2",0,0,"Gagnant M4"]
[null,null,null,null,null,null,null,null,null,null,null,null,null,null,null,null,null,null,null,"FINALE"]
[null,null,null,null,null,null,null,null,null,null,null,null,null,null,null,null,null,null,null,"M16"]
[null,null,null,null,null,null,null,null,null,null,null,null,null,null,null,null,null,null,null,"17h33"]
[null,null,null,null,null,null,null,null,null,null,null,null,null,null,null,null,null,null,null,"Gagnant M9",0,0,"Gagnant M10"]
[]
[]
[]
[null,null,null,null,null,null,null,null,null,null,null,null,null,"DEMI 1 ESPOIR",null,null,null,null,null,null,null,null,null,null,null,"DEMI 2 ESPOIR"]
[null,null,null,null,null,null,null,null,null,null,null,null,null,"M5",null,null,null,null,null,null,null,null,null,null,null,"M6"]
[null,null,null,null,null,null,null,null,null,null,null,null,null,"14h48",null,null,null,null,null,null,null,null,null,null,null,"15h05"]
[null,null,null,null,null,null,null,null,null,null,null,null,null,"-",0,0,"-",null,null,null,null,null,null,null,null,"-",0,0,"-"]
[]
[null,null,null,null,null,null,null,"PALMARES ELITE",null,null,null,null,null,null,null,null,null,null,null,"PETITE Finale ESPOIR",null,null,null,null,null,null,null,null,null,null,null,"PALMARES ESPOIR"]
[null,null,null,null,null,null,null,"1er",null,null,null,null,null,null,null,null,null,null,null,"M13",null,null,null,null,null,null,null,null,null,null,null,"1er"]
[null,null,null,null,null,null,null,"2ème",null,null,null,null,null,null,null,null,null,null,null,"17h04",null,null,null,null,null,null,null,null,null,null,null,"2ème"]
[null,null,null,null,null,null,null,"3ème",null,null,null,null,null,null,null,null,null,null,null,"Perdant M5",0,0,"Perdant M6",null,null,null,null,null,null,null,null,"3ème"]
[null,null,null,null,null,null,null,"4ème",null,null,null,null,null,null,null,null,null,null,null,null,null,null,null,null,null,null,null,null,null,null,null,"4ème"]
[null,null,null,null,null,null,null,"5ème",null,null,null,null,null,null,null,null,null,null,null,"FINALE ESPOIR"]
[null,null,null,null,null,null,null,"6ème",null,null,null,null,null,null,null,null,null,null,null,"M15"]
[null,null,null,null,null,null,null,"7ème",null,null,null,null,null,null,null,null,null,null,null,"17h16"]
[null,null,null,null,null,null,null,"8ème",null,null,null,null,null,null,null,null,null,null,null,"Gagnant M5",0,0,"Gagnant M6"]
[null,null,null,null,null,null,null,"En cas d'égalité sur ces matchs, séance de jet de 7 m (3 jets par équipes, puis but en or)"]
[]
[null,null,null,null,null,null,null,null,null,null,null,null,null,"Numéro du match",null,null,null,null,null,"VICTOIRE / GEWININNER",null,null,null,null,null,null,null,null,"DEFAITE / VERLIERER "]